Amount (�),Supplier,Service ,Division,Cost Centre,Cost Centre Code,Expenditure Category,Date Paid,Type,Transaction Reference,Dept
"7,336,011.50",Nottinghamshire County Council,Collection Fund,Precepting Authorities,Notts Cc Precept & Ndr Share,5930,Precept Paid,16/04/2019,Collection Fund Accounts,95478,FINANCE & CORPORATE SERVICES
"7,336,011.50",Nottinghamshire County Council,Collection Fund,Precepting Authorities,Notts Cc Precept & Ndr Share,5930,Precept Paid,24/05/2019,Collection Fund Accounts,95531,FINANCE & CORPORATE SERVICES
"937,076.00",Notts Police & Crime Commissioner,Collection Fund,Precepting Authorities,Notts Police Precept & Ndr,5932,Precept Paid,16/04/2019,Collection Fund Accounts,95479,FINANCE & CORPORATE SERVICES
"937,076.00",Notts Police & Crime Commissioner,Collection Fund,Precepting Authorities,Notts Police Precept & Ndr,5932,Precept Paid,24/05/2019,Collection Fund Accounts,95539,FINANCE & CORPORATE SERVICES
"366,324.00",Notts Fire And Rescue Service,Collection Fund,Precepting Authorities,Notts Fire Precept & Ndr,5933,Precept Paid,16/04/2019,Collection Fund Accounts,95480,FINANCE & CORPORATE SERVICES
"366,321.00",Notts Fire And Rescue Service,Collection Fund,Precepting Authorities,Notts Fire Precept & Ndr,5933,Precept Paid,24/05/2019,Collection Fund Accounts,95535,FINANCE & CORPORATE SERVICES
"215,809.80",Terberg Matec Uk Limited,Finance & Corporate Services,Financial Services,Suspense No Code,5224,Returned Creditors,15/05/2019,Returned Creditors,95951,FINANCE & CORPORATE SERVICES
"215,809.80",Terberg Matec Uk Limited,Finance & Corporate Services,Financial Services,Suspense No Code,5224,Returned Creditors,29/05/2019,Returned Creditors,96313,FINANCE & CORPORATE SERVICES
"178,849.00",Terberg Matec Uk Limited,Capital Expenditure,Neighbourhoods,Vehicle Replacement,0680,Vehicles Acquisition,24/04/2019,Supplies & Services,95183,CAPITAL
"167,345.87",Zurich Municipal,Finance & Corporate Services,Financial Services,Main Premiums,4920,Miscellaneous Insurances,24/04/2019,Supplies & Services,95193,FINANCE & CORPORATE SERVICES
"165,309.32",Thomas Bow Ltd,Capital Expenditure,Transformation & Innovation,Cotgrave Masterplan,0303,Legal & Professional Services,12/06/2019,Supplies & Services,97184,CAPITAL
"150,059.00",Radcliffe On Trent Parish Council,General Fund Summary,Cies,Parish Council Precepts,1990,Parish Precepts,24/04/2019,Transfers Expenditure,95412,TRANSFORMATION
"149,795.00",Ruddington Parish Council,General Fund Summary,Cies,Parish Council Precepts,1990,Parish Precepts,24/04/2019,Transfers Expenditure,95415,TRANSFORMATION
"141,707.00",Bingham Town Council (Precept),General Fund Summary,Cies,Parish Council Precepts,1990,Parish Precepts,24/04/2019,Transfers Expenditure,95378,TRANSFORMATION
"141,678.00",East Leake Parish Council,General Fund Summary,Cies,Parish Council Precepts,1990,Parish Precepts,24/04/2019,Transfers Expenditure,95391,TRANSFORMATION
"138,108.34",Streetwise Environmental Ltd,Neighbourhoods,Waste & Fleet Management,Streetwise Contract,8301,Contractors-Third Party,24/04/2019,Third Party Payments,95685,NEIGHBOURHOODS
"138,108.34",Streetwise Environmental Ltd,Neighbourhoods,Waste & Fleet Management,Streetwise Contract,8301,Contractors-Third Party,24/05/2019,Third Party Payments,96322,NEIGHBOURHOODS
"138,108.34",Streetwise Environmental Ltd,Neighbourhoods,Waste & Fleet Management,Streetwise Contract,8301,Contractors-Third Party,24/06/2019,Third Party Payments,97408,NEIGHBOURHOODS
"129,841.00",Trent Valley Internal Drainage Board,Finance & Corporate Services,Financial Services,Internal Drainage Board Levies,1047,Nndr,29/05/2019,Premises Related Expenditure,95515,FINANCE & CORPORATE SERVICES
"116,728.32",Thomas Bow Ltd,Capital Expenditure,Transformation & Innovation,Cotgrave Masterplan,0303,Legal & Professional Services,11/04/2019,Supplies & Services,95144,CAPITAL
"109,650.00",Cotgrave Town Council,General Fund Summary,Cies,Parish Council Precepts,1990,Parish Precepts,24/04/2019,Transfers Expenditure,95384,TRANSFORMATION
"105,617.47",Thomas Bow Ltd,Capital Expenditure,Transformation & Innovation,Cotgrave Masterplan,0303,Legal & Professional Services,12/06/2019,Supplies & Services,97198,CAPITAL
"88,425.00",Keyworth Parish Council,General Fund Summary,Cies,Parish Council Precepts,1990,Parish Precepts,24/04/2019,Transfers Expenditure,95401,TRANSFORMATION
"56,125.32",Maverick Industries Ltd,Capital Expenditure,Communties,Skate Park Facilities The Hook,0662,Contractors-Third Party,11/04/2019,Third Party Payments,94887,CAPITAL
"55,000.00",Trent Bridge Community Trust,Communities,Community Development,Community Development,1581,Projects & Activities,27/06/2019,Supplies & Services,97407,COMMUNITIES
"54,000.00",East Leake Parish Council,Capital Expenditure,Communties,Skate Park Facilities The Hook,0662,Contractors-Third Party,24/04/2019,Third Party Payments,95477,CAPITAL
"52,217.00",Bytes Software Services Ltd,Transformation,Ict,It Rechargeable Costs,4722,Maintenance Contracts - S&S,24/06/2019,Supplies & Services,97042,TRANSFORMATION
"45,867.50",Cropwell Bishop Parish Council,General Fund Summary,Cies,Parish Council Precepts,1990,Parish Precepts,24/04/2019,Transfers Expenditure,95386,TRANSFORMATION
"45,749.27",As Enterprises Limited,Capital Expenditure,Transformation & Innovation,Cotgrave Phase 2,0387,Legal & Professional Services,13/05/2019,Supplies & Services,96139,CAPITAL
"43,483.00",Idox Software Limited,Transformation,Ict,It Rechargeable Costs,4722,Maintenance Contracts - S&S,08/05/2019,Supplies & Services,95087,TRANSFORMATION
"41,000.00",Trent Bridge Community Trust,Communities,Community Development,Young,1048,Projects & Activities,27/06/2019,Supplies & Services,97406,COMMUNITIES
"30,720.00",Allan Joyce Architects Ltd,Capital Income,Capital Receipts,Disposal Depot Site,0952,Legal & Professional Services,14/06/2019,Supplies & Services,97180,CAPITAL
"30,190.08",Nottingham City Council,Neighbourhoods,Waste & Fleet Management,Garage,8700,Contractors-Transport,27/06/2019,Transport Related Expenditure,97627,NEIGHBOURHOODS
"29,584.56",Nottingham City Council,Neighbourhoods,Waste & Fleet Management,Garage,8700,Contractors-Transport,13/05/2019,Transport Related Expenditure,96027,NEIGHBOURHOODS
"29,337.00",Tollerton Parish Council,General Fund Summary,Cies,Parish Council Precepts,1990,Parish Precepts,24/04/2019,Transfers Expenditure,95426,TRANSFORMATION
"26,780.70",Zurich Municipal,Finance & Corporate Services,Financial Services,Main Premiums,4920,Miscellaneous Insurances,24/04/2019,Supplies & Services,95198,FINANCE & CORPORATE SERVICES
"25,900.00",Notts County Council,Transformation,Emergency Planning,Emergency Planning,1041,O.L.A Staff,24/05/2019,Employee Related Expenditure,96420,TRANSFORMATION
"24,658.00",Commercial Surface Solutions Ltd,Transformation,Property Services,Open Spaces & Footpaths,1290,Responsive Works - Buildings,03/04/2019,Premises Related Expenditure,94964,TRANSFORMATION
"23,831.24",Certas Energy T/A Pace Fuelcare,Neighbourhoods,Waste & Fleet Management,Fleet,8600,Diesel,24/04/2019,Transport Related Expenditure,95668,NEIGHBOURHOODS
"23,379.62",Certas Energy T/A Pace Fuelcare,Neighbourhoods,Waste & Fleet Management,Fleet,8600,Diesel,11/04/2019,Transport Related Expenditure,94966,NEIGHBOURHOODS
"22,989.50",Nottingham City Council,Neighbourhoods,Waste & Fleet Management,Garage,8700,Contractors-Transport,07/06/2019,Transport Related Expenditure,96999,NEIGHBOURHOODS
"21,500.00",Capita Software Services,Transformation,Ict,It Rechargeable Costs,4722,Maintenance Contracts - S&S,17/04/2019,Supplies & Services,94930,TRANSFORMATION
"20,312.16",Broxtowe Borough Council,Neighbourhoods,Leisure Contracts & Car Parks,Car Parks,1900,Contractors-Supplies & Servs,03/04/2019,Supplies & Services,94889,FINANCE & CORPORATE SERVICES
"20,223.18",Dsi Billing Ltd,Transformation,Bsu,Central Mail,4871,Postages,09/04/2019,Supplies & Services,95020,TRANSFORMATION
"20,044.53",Print Image Network Ltd,Assets,Current Assets,European Election,7102,External Printing,14/06/2019,Supplies & Services,97193,FINANCE & CORPORATE SERVICES
"19,817.00",East Bridgford Parish Council,General Fund Summary,Cies,Parish Council Precepts,1990,Parish Precepts,24/04/2019,Transfers Expenditure,95389,TRANSFORMATION
"19,500.00",Costock Parish  Council,General Fund Summary,Cies,Parish Council Precepts,1990,Parish Precepts,24/04/2019,Transfers Expenditure,95383,TRANSFORMATION
"19,200.00",Nottingham And District Cab,Neighbourhoods,Strategic Housing,Homelessness Prevention,1147,Grants,04/06/2019,Supplies & Services,96507,NEIGHBOURHOODS
"19,073.00",Gotham Parish Council,General Fund Summary,Cies,Parish Council Precepts,1990,Parish Precepts,24/04/2019,Transfers Expenditure,95394,TRANSFORMATION
"19,000.00",Bunny Parish Council,General Fund Summary,Cies,Parish Council Precepts,1990,Parish Precepts,24/04/2019,Transfers Expenditure,95381,TRANSFORMATION
"18,650.00",Holme Pierrepont & Gamston Parish Council,General Fund Summary,Cies,Parish Council Precepts,1990,Parish Precepts,24/04/2019,Transfers Expenditure,95399,TRANSFORMATION
"18,550.04",Print Image Facilities Llp,Assets,Current Assets,European Election,7102,Postages,01/05/2019,Supplies & Services,95854,FINANCE & CORPORATE SERVICES
"18,500.00",Rural Community Action Notts,Communities,Community Development,Community Development,1581,Projects & Activities,24/05/2019,Supplies & Services,96409,COMMUNITIES
"18,470.50",Langar Cum Barnstone Parish Council,General Fund Summary,Cies,Parish Council Precepts,1990,Parish Precepts,24/04/2019,Transfers Expenditure,95405,TRANSFORMATION
"18,200.00",Newton Parish Council,General Fund Summary,Cies,Parish Council Precepts,1990,Parish Precepts,24/04/2019,Transfers Expenditure,95407,TRANSFORMATION
"16,710.00",Commercial Surface Solutions Ltd,Neighbourhoods,Leisure Contracts & Car Parks,Car Parks,1900,Contractors-Supplies & Servs,12/06/2019,Supplies & Services,96915,FINANCE & CORPORATE SERVICES
"16,387.00",Gedling Borough Council,Finance & Corporate Services,Financial Services,Financial Services,4705,Contractors-Supplies & Servs,03/04/2019,Supplies & Services,94899,FINANCE & CORPORATE SERVICES
"16,199.22",Print Image Network Ltd,Finance & Corporate Services,Democratic Services,Borough Council Elections,1021,External Printing,14/06/2019,Supplies & Services,97192,FINANCE & CORPORATE SERVICES
"15,815.00",Whatton In The Vale Parish Council,General Fund Summary,Cies,Parish Council Precepts,1990,Parish Precepts,24/04/2019,Transfers Expenditure,95430,TRANSFORMATION
"15,750.00",Nottinghamshire Wildlife Trust,Communities,Community Development,Environmental Promotion,1590,Legal & Professional Services,04/06/2019,Supplies & Services,96519,COMMUNITIES
"15,216.67",Nottingham City Council,Neighbourhoods,Waste & Fleet Management,Eastcroft Depot,4002,Olas - Nottm City Council,13/05/2019,Third Party Payments,96239,NEIGHBOURHOODS
"15,000.00",Capita Software Services,Transformation,Ict,It Rechargeable Costs,4722,Maintenance Contracts - S&S,17/04/2019,Supplies & Services,94929,TRANSFORMATION
"15,000.00",Rushcliffe Cvs,Communities,Community Development,Community Development,1581,Grants,29/04/2019,Supplies & Services,95681,COMMUNITIES
"14,928.41",Nottingham City Council,Neighbourhoods,Waste & Fleet Management,Garage,8700,Contractors-Transport,13/05/2019,Transport Related Expenditure,94915,NEIGHBOURHOODS
"14,300.00",Wysall & Thorpe Parish Council,General Fund Summary,Cies,Parish Council Precepts,1990,Parish Precepts,24/04/2019,Transfers Expenditure,95433,TRANSFORMATION
"14,250.00",Flintham Parish Council,General Fund Summary,Cies,Parish Council Precepts,1990,Parish Precepts,24/04/2019,Transfers Expenditure,95393,TRANSFORMATION
"13,603.00",Normanton On Soar Parish Council,General Fund Summary,Cies,Parish Council Precepts,1990,Parish Precepts,24/04/2019,Transfers Expenditure,95408,TRANSFORMATION
"12,998.96",One51 Es Plastics (Uk) Ltd T/A Mgb Plastics,Capital Expenditure,Neighbourhoods,Wheeled Bins,0310,Other Equipment/Materials,29/04/2019,Supplies & Services,95454,CAPITAL
"12,900.50",Sutton Bonington Parish Council,General Fund Summary,Cies,Parish Council Precepts,1990,Parish Precepts,24/04/2019,Transfers Expenditure,95423,TRANSFORMATION
"12,893.40",One51 Es Plastics (Uk) Ltd T/A Mgb Plastics,Capital Expenditure,Neighbourhoods,Wheeled Bins,0310,Other Equipment/Materials,01/05/2019,Supplies & Services,95628,CAPITAL
"12,600.37",Zurich Municipal,Finance & Corporate Services,Financial Services,Main Premiums,4920,Miscellaneous Insurances,24/04/2019,Supplies & Services,95194,FINANCE & CORPORATE SERVICES
"12,390.56",One51 Es Plastics (Uk) Ltd T/A Mgb Plastics,Capital Expenditure,Neighbourhoods,Wheeled Bins,0310,Other Equipment/Materials,05/04/2019,Supplies & Services,94973,CAPITAL
"12,300.00",Cropwell Butler Parish Council,General Fund Summary,Cies,Parish Council Precepts,1990,Parish Precepts,24/04/2019,Transfers Expenditure,95388,TRANSFORMATION
"12,279.60",Geldards Llp,Capital Expenditure,Transformation & Innovation,6 Boundary Court Castle Don.,0388,Legal & Professional Services,16/04/2019,Supplies & Services,95023,CAPITAL
"11,972.69",Radcliffe On Trent Parish Council,Transformation,Property Services,Parish Run Pub Conveniences,1072,Grants,29/05/2019,Supplies & Services,96186,TRANSFORMATION
"11,832.00",Prism Medical Uk Ltd,Capital Expenditure,Neighbourhoods,Disabled Facilities Grant,0332,Grants,31/05/2019,Supplies & Services,96717,CAPITAL
"11,627.48",East Leake Parish Council,Transformation,Property Services,Parish Run Pub Conveniences,1072,Grants,29/04/2019,Supplies & Services,95849,TRANSFORMATION
"11,488.13",Royal Mail Group Ltd,Assets,Current Assets,European Election,7102,Postages,27/06/2019,Supplies & Services,96310,FINANCE & CORPORATE SERVICES
"11,439.00",Print Image Network Ltd,Assets,Current Assets,European Election,7102,External Printing,14/06/2019,Supplies & Services,97194,FINANCE & CORPORATE SERVICES
"11,000.00",Colston Bassett Parish Council,General Fund Summary,Cies,Parish Council Precepts,1990,Parish Precepts,24/04/2019,Transfers Expenditure,95382,TRANSFORMATION
"10,925.00",Willoughby On The Wolds P C,General Fund Summary,Cies,Parish Council Precepts,1990,Parish Precepts,24/04/2019,Transfers Expenditure,95432,TRANSFORMATION
"10,464.46",Certas Energy T/A Pace Fuelcare,Neighbourhoods,Waste & Fleet Management,Fleet,8600,Diesel,04/06/2019,Transport Related Expenditure,96884,NEIGHBOURHOODS
"10,450.00",Local Government Association,Finance & Corporate Services,Emt & Transformation,Executive Management Team,4721,Subscriptions,13/05/2019,Supplies & Services,95928,FINANCE & CORPORATE SERVICES
"10,410.12",Certas Energy T/A Pace Fuelcare,Neighbourhoods,Waste & Fleet Management,Fleet,8600,Diesel,13/05/2019,Transport Related Expenditure,96238,NEIGHBOURHOODS
"10,350.00",Upgrade Options Limited,Capital Expenditure,Transformation & Innovation,Ict Replacement Programme,0592,Computer Hardware,12/06/2019,Supplies & Services,96750,CAPITAL
"10,312.57",Royal Mail Group Ltd,Finance & Corporate Services,Democratic Services,Borough Council Elections,1021,Postages,13/05/2019,Supplies & Services,95783,FINANCE & CORPORATE SERVICES
"10,226.00",Granby Cum Sutton Parish Counil,General Fund Summary,Cies,Parish Council Precepts,1990,Parish Precepts,24/04/2019,Transfers Expenditure,95396,TRANSFORMATION
"10,043.90",Jd Williams Building Contractor,Capital Expenditure,Neighbourhoods,Disabled Facilities Grant,0332,Grants,29/04/2019,Supplies & Services,95784,CAPITAL
"10,000.00",Shelford Parish Council,General Fund Summary,Cies,Parish Council Precepts,1990,Parish Precepts,24/04/2019,Transfers Expenditure,95418,TRANSFORMATION
"9,920.00",Hawksworth Parish Meeting,General Fund Summary,Cies,Parish Council Precepts,1990,Parish Precepts,24/04/2019,Transfers Expenditure,95397,TRANSFORMATION
"9,375.00",Idox Software Limited,Capital Expenditure,Transformation & Innovation,Applications/Apps,0605,Software,15/05/2019,Supplies & Services,95857,CAPITAL
"9,211.00",Orston Parish Council,General Fund Summary,Cies,Parish Council Precepts,1990,Parish Precepts,24/04/2019,Transfers Expenditure,95410,TRANSFORMATION
"9,148.00",Aslockton Parish Council,General Fund Summary,Cies,Parish Council Precepts,1990,Parish Precepts,24/04/2019,Transfers Expenditure,95376,TRANSFORMATION
"8,500.00",Upper Broughton Parish Council,General Fund Summary,Cies,Parish Council Precepts,1990,Parish Precepts,24/04/2019,Transfers Expenditure,95428,TRANSFORMATION
"8,419.67",Horizon Landscapes Ltd,Capital Expenditure,Finance & Corporate,Capital Contingency,0990,Contingency Allocation,14/06/2019,Supplies & Services,97185,CAPITAL
"8,385.63",Axess Systems Ltd,Transformation,Ict,It Rechargeable Costs,4722,Maintenance Contracts - S&S,07/06/2019,Supplies & Services,96703,TRANSFORMATION
"8,345.56",Streetwise Environmental Ltd,Neighbourhoods,Waste & Fleet Management,Street Cleansing,1856,Contractors-Supplies & Servs,11/04/2019,Supplies & Services,94917,NEIGHBOURHOODS
"8,112.14",Abbott And Mason Ltd,Capital Expenditure,Neighbourhoods,Disabled Facilities Grant,0332,Grants,13/05/2019,Supplies & Services,96216,CAPITAL
"8,015.86",The Nottinghamshire Hospice,Liabilities,Current Liabilities,Mayor'S Charity 2018/19 Stockw,5216,Balance Sheet Exp In The Year,19/06/2019,Balance Sheet Exp In The Year,97342,FINANCE & CORPORATE SERVICES
"7,829.12",Mocha Furniture Ltd,Capital Expenditure,Transformation & Innovation,New Depot,0312,Other Equipment/Materials,13/05/2019,Supplies & Services,96234,CAPITAL
"7,750.00",Modern Mindset Ltd,Transformation,Ict,It Rechargeable Costs,4722,Maintenance Contracts - S&S,19/06/2019,Supplies & Services,97328,TRANSFORMATION
"7,707.14",Terminal Four,Transformation,Ict,It Rechargeable Costs,4722,Maintenance Contracts - S&S,08/05/2019,Supplies & Services,95781,TRANSFORMATION
"7,520.00",Hickling Parish Council,General Fund Summary,Cies,Parish Council Precepts,1990,Parish Precepts,24/04/2019,Transfers Expenditure,95398,TRANSFORMATION
"7,500.00",Ade Regeneration,Transformation,Economic Regeneration,Economic Development,1887,Feasibility Study,17/04/2019,Supplies & Services,95287,TRANSFORMATION
"7,300.00",Heb Chartered Surveyors,Communities,Planning Policy,Development Plans,1232,Legal & Professional Services,05/04/2019,Supplies & Services,95086,COMMUNITIES
"7,296.00",Normanton On The Wolds P C,General Fund Summary,Cies,Parish Council Precepts,1990,Parish Precepts,24/04/2019,Transfers Expenditure,95409,TRANSFORMATION
"7,240.00",Stanton On The Wolds Parish Co,General Fund Summary,Cies,Parish Council Precepts,1990,Parish Precepts,24/04/2019,Transfers Expenditure,95422,TRANSFORMATION
"6,800.00",Nottingham Tyre Company,Neighbourhoods,Waste & Fleet Management,Waste Collection,8403,Tyres,15/05/2019,Transport Related Expenditure,96061,NEIGHBOURHOODS
"6,750.00",Idox Software Limited,Transformation,Ict,It Rechargeable Costs,4722,Maintenance Contracts - S&S,07/06/2019,Supplies & Services,96704,TRANSFORMATION
"6,653.01",Streetwise Environmental Ltd,Neighbourhoods,Waste & Fleet Management,Street Cleansing,1856,Contractors-Supplies & Servs,11/04/2019,Supplies & Services,94919,NEIGHBOURHOODS
"6,628.37",Print Image Facilities Llp,Assets,Current Assets,European Election,7102,Postages,01/05/2019,Supplies & Services,95853,FINANCE & CORPORATE SERVICES
"6,603.00",Streetwise Environmental Ltd,Transformation,Property Services,Open Spaces & Footpaths,1290,Responsive Works - Buildings,16/04/2019,Premises Related Expenditure,95456,TRANSFORMATION
"6,540.00",Safespaces (Cornholme) Ltd,Capital Expenditure,Neighbourhoods,Disabled Facilities Grant,0332,Grants,05/04/2019,Supplies & Services,95029,CAPITAL
"6,525.48",Tunstall Response Ltd,Neighbourhoods,Strategic Housing,Home Alarms,1137,Other Services,27/06/2019,Supplies & Services,96307,NEIGHBOURHOODS
"6,520.00",Uk Property Rescue Ltd,Neighbourhoods,Environmental Health,Work In Default,1066,Fees & Charges - General,17/04/2019,Income,95201,NEIGHBOURHOODS
"6,500.00",Kinoulton Parish Council,General Fund Summary,Cies,Parish Council Precepts,1990,Parish Precepts,24/04/2019,Transfers Expenditure,95404,TRANSFORMATION
"6,212.50",Print Image Network Ltd,Finance & Corporate Services,Democratic Services,Borough Council Elections,1021,External Printing,14/06/2019,Supplies & Services,97189,FINANCE & CORPORATE SERVICES
"6,182.54",Print Image Network Ltd,Finance & Corporate Services,Democratic Services,Electoral Registration,1026,Other Miscellaneous Expenses,15/05/2019,Supplies & Services,96088,FINANCE & CORPORATE SERVICES
"6,036.00",Widmerpool Parish Council,Transformation,Property Services,Bingham Market Stalls,1880,Parish Precepts,24/04/2019,Transfers Expenditure,95431,TRANSFORMATION
"6,000.00",Broxtowe Youth Homelessness,Neighbourhoods,Strategic Housing,Homelessness Prevention,1147,Grants,07/06/2019,Supplies & Services,96634,NEIGHBOURHOODS
"6,000.00",Civica Uk Ltd,Capital Expenditure,Transformation & Innovation,Applications/Apps,0605,Software,24/06/2019,Supplies & Services,97153,CAPITAL
"5,990.98",Trent Valley Plumbing & Build,Capital Expenditure,Neighbourhoods,Disabled Facilities Grant,0332,Grants,16/04/2019,Supplies & Services,95261,CAPITAL
"5,904.00",Zurich Municipal,Finance & Corporate Services,Financial Services,Main Premiums,4920,Miscellaneous Insurances,24/04/2019,Supplies & Services,95195,FINANCE & CORPORATE SERVICES
"5,898.22",Notts County Cricket Club,Finance & Corporate Services,Democratic Services,Mayoral Expenses,1001,Catering Provisions,03/04/2019,Supplies & Services,95025,FINANCE & CORPORATE SERVICES
"5,893.37",Capita Business Services Ltd,Finance & Corporate Services,Revenues & Benefits,Housing Benefits Admin.,1140,Other Government Grants,24/05/2019,Income,96212,FINANCE & CORPORATE SERVICES
"5,836.00",Royal Mail Group Ltd,Assets,Current Assets,European Election,7102,Postages,04/06/2019,Supplies & Services,96715,FINANCE & CORPORATE SERVICES
"5,670.00",Ep Consulting Building Services Engineers,Capital Expenditure,Neighbourhoods,Clc Pool Ventilation,0343,Legal & Professional Services,24/04/2019,Supplies & Services,95468,CAPITAL
"5,600.00",Bsp Consulting,Transformation,Property Services,Land Holdings,1884,Legal & Professional Services,15/05/2019,Supplies & Services,96182,TRANSFORMATION
"5,525.00",Rsm,Finance & Corporate Services,Financial Services,Internal Audit,4708,Legal & Professional Services,29/04/2019,Supplies & Services,95683,FINANCE & CORPORATE SERVICES
"5,523.24",Print Image Network Ltd,Assets,Current Assets,European Election,7102,External Printing,14/06/2019,Supplies & Services,97188,FINANCE & CORPORATE SERVICES
"5,450.00",Tunstall Response Ltd,Capital Expenditure,Neighbourhoods,Assistive Technology,0335,Grants,01/05/2019,Supplies & Services,95626,CAPITAL
"5,434.50",Zurich Municipal,Finance & Corporate Services,Financial Services,Main Premiums,4920,Miscellaneous Insurances,24/04/2019,Supplies & Services,95196,FINANCE & CORPORATE SERVICES
"5,433.54",Blachere Illumination Uk Ltd,Transformation,Economic Regeneration,West Bridgford Town Centre,1875,Other Services,24/04/2019,Supplies & Services,95132,TRANSFORMATION
"5,390.00",Hemming Group Ltd,Finance & Corporate Services,Emt & Transformation,Executive Management Team,4721,Subscriptions,04/06/2019,Supplies & Services,96574,FINANCE & CORPORATE SERVICES
"5,343.17",The South Wolds Academy And Sixth Form,Neighbourhoods,Leisure Contracts & Car Parks,Leisure Management Contract,1795,Premises Rents,15/05/2019,Premises Related Expenditure,95939,FINANCE & CORPORATE SERVICES
"5,250.00",S.R.B Builders,Capital Expenditure,Neighbourhoods,Disabled Facilities Grant,0332,Grants,05/04/2019,Supplies & Services,95019,CAPITAL
"5,208.33",A W Lymn Limited,Transformation,Property Services,Keyworth Cemetery,1933,Responsive Works - Buildings,29/05/2019,Premises Related Expenditure,96302,TRANSFORMATION
"5,206.00",Trent Valley Plumbing & Build,Capital Expenditure,Neighbourhoods,Disabled Facilities Grant,0332,Grants,13/05/2019,Supplies & Services,96153,CAPITAL
"5,200.00",Integrity Communications Ltd,Transformation,Ict,It Rechargeable Costs,4722,Maintenance Contracts - S&S,24/05/2019,Supplies & Services,96306,TRANSFORMATION
"5,175.75",Streetwise Environmental Ltd,Capital Expenditure,Communties,The Hook Play Area,0660,Contractors-Third Party,29/04/2019,Third Party Payments,95464,CAPITAL
"5,125.00",Stanford On Soar Parish Council,General Fund Summary,Cies,Parish Council Precepts,1990,Parish Precepts,24/04/2019,Transfers Expenditure,95421,TRANSFORMATION
"5,121.00",Trent Valley Plumbing & Build,Capital Expenditure,Neighbourhoods,Disabled Facilities Grant,0332,Grants,12/06/2019,Supplies & Services,96834,CAPITAL
"5,088.00",Rempstone Parish Council,General Fund Summary,Cies,Parish Council Precepts,1990,Parish Precepts,24/04/2019,Transfers Expenditure,95414,TRANSFORMATION
"5,027.00",Trent Valley Plumbing & Build,Capital Expenditure,Neighbourhoods,Disabled Facilities Grant,0332,Grants,09/04/2019,Supplies & Services,95013,CAPITAL
"5,022.50",Lodge Tyre Co.Ltd,Neighbourhoods,Waste & Fleet Management,Waste Collection,8403,Tyres,13/05/2019,Transport Related Expenditure,96154,NEIGHBOURHOODS
"5,000.00",Friary Drop In,Neighbourhoods,Strategic Housing,Homeless B&B,1110,Grants,24/05/2019,Supplies & Services,96416,NEIGHBOURHOODS
"5,000.00",Streetwise Environmental Ltd,Neighbourhoods,Waste & Fleet Management,Street Cleansing,1856,Contractors-Supplies & Servs,11/04/2019,Supplies & Services,94918,NEIGHBOURHOODS
"4,995.00",Nottingham City Council,Finance & Corporate Services,Democratic Services,Members Services,1000,Olas - Nottm City Council,07/06/2019,Third Party Payments,96922,FINANCE & CORPORATE SERVICES
"4,923.00",Plumtree Parish Council,General Fund Summary,Cies,Parish Council Precepts,1990,Parish Precepts,24/04/2019,Transfers Expenditure,95411,TRANSFORMATION
"4,749.06",Frontline Recruitment Ltd,Neighbourhoods,Waste & Fleet Management,Waste Collection,8403,Agency Staff,15/05/2019,Employee Related Expenditure,96192,NEIGHBOURHOODS
"4,716.46",Aag It Services,Transformation,Ict,It Rechargeable Costs,4722,Maintenance Contracts - S&S,11/04/2019,Supplies & Services,94999,TRANSFORMATION
"4,690.99",Streetwise Environmental Ltd,Capital Expenditure,Communties,Skate Park Facilities The Hook,0662,Contractors-Third Party,07/06/2019,Third Party Payments,96746,CAPITAL
"4,650.00",Maltby & Company,Capital Expenditure,Communties,The Hook Play Area,0660,Contractors-Third Party,17/04/2019,Third Party Payments,94981,CAPITAL
"4,645.32",East Midlands Chamber,Transformation,Economic Regeneration,Economic Development,1887,Projects & Activities,17/04/2019,Supplies & Services,95100,TRANSFORMATION
"4,592.00",Trent Valley Plumbing & Build,Capital Expenditure,Neighbourhoods,Disabled Facilities Grant,0332,Grants,29/04/2019,Supplies & Services,95262,CAPITAL
"4,585.00",Bsp Consulting,Capital Expenditure,Transformation & Innovation,Cotgrave Phase 2,0387,Legal & Professional Services,24/05/2019,Supplies & Services,96633,CAPITAL
"4,576.00",Horizon Landscapes Ltd,Capital Expenditure,Communties,Skate Park Facilities The Hook,0662,Contractors-Third Party,14/06/2019,Third Party Payments,97186,CAPITAL
"4,568.95",The National Leaflet Company,Finance & Corporate Services,"Performance, Repn & Comms",Performance And Reputation,4710,Other Services,16/04/2019,Supplies & Services,95467,FINANCE & CORPORATE SERVICES
"4,518.24",Frontline Recruitment Ltd,Neighbourhoods,Waste & Fleet Management,Waste Collection,8403,Agency Staff,19/06/2019,Employee Related Expenditure,97032,NEIGHBOURHOODS
"4,465.00",Cadline Limited,Transformation,Ict,It Rechargeable Costs,4722,Software,04/06/2019,Supplies & Services,96723,TRANSFORMATION
"4,452.95",Parkwood Leisure Ltd,Finance & Corporate Services,Financial Services,Financial Services,4705,Other Miscellaneous Expenses,15/05/2019,Supplies & Services,96031,FINANCE & CORPORATE SERVICES
"4,394.92",Parkwood Community Leisure,Transformation,Property Services,Arena Civic Centre,4718,Electricity,21/05/2019,Premises Related Expenditure,96076,TRANSFORMATION
"4,393.00",Uk Property Rescue Ltd,Neighbourhoods,Environmental Health,Work In Default,1066,Fees & Charges - General,08/05/2019,Income,95362,NEIGHBOURHOODS
"4,390.84",Newark & Sherwood District Council,Neighbourhoods,Waste & Fleet Management,Green Bin Collection,8402,Sale Of Waste Bins,11/04/2019,Income,95246,NEIGHBOURHOODS
"4,384.56",Frontline Recruitment Ltd,Neighbourhoods,Waste & Fleet Management,Waste Collection,8403,Agency Staff,19/06/2019,Employee Related Expenditure,97339,NEIGHBOURHOODS
"4,342.97",Frontline Recruitment Ltd,Neighbourhoods,Waste & Fleet Management,Waste Collection,8403,Agency Staff,29/05/2019,Employee Related Expenditure,96710,NEIGHBOURHOODS
"4,329.73",Trent Valley Architectural Glazing Limited,Transformation,Property Services,The Point,1886,Responsive Works - Buildings,25/04/2019,Premises Related Expenditure,95103,TRANSFORMATION
"4,277.00",Via East Midlands,Communities,Planning Policy,Land Charges,1033,Other Services,01/05/2019,Supplies & Services,95811,COMMUNITIES
"4,195.00",Lodge Tyre Co.Ltd,Neighbourhoods,Waste & Fleet Management,Waste Collection,8403,Tyres,11/04/2019,Transport Related Expenditure,95034,NEIGHBOURHOODS
"4,138.58",Frontline Recruitment Ltd,Neighbourhoods,Waste & Fleet Management,Waste Collection,8403,Agency Staff,01/05/2019,Employee Related Expenditure,95822,NEIGHBOURHOODS
"4,125.00",Kingston On Soar Parish Council,General Fund Summary,Cies,Parish Council Precepts,1990,Parish Precepts,24/04/2019,Transfers Expenditure,95403,TRANSFORMATION
"4,064.00",Nottingham City Council,Communities,Community Development,Environmental Promotion,1590,Legal & Professional Services,04/06/2019,Supplies & Services,96924,COMMUNITIES
"4,001.20",Jd Williams Building Contractor,Capital Expenditure,Neighbourhoods,Disabled Facilities Grant,0332,Grants,29/04/2019,Supplies & Services,95785,CAPITAL
"4,000.00",Axess Systems Ltd,Transformation,Ict,It Rechargeable Costs,4722,Legal & Professional Services,03/05/2019,Supplies & Services,91030,TRANSFORMATION
"4,000.00",Centerprise International,Transformation,Ict,It Rechargeable Costs,4722,Maintenance Contracts - S&S,16/04/2019,Supplies & Services,95354,TRANSFORMATION
"4,000.00",East Leake Parish Council,Communities,Community Development,Recreational Open Spaces,1280,Grounds Maintenance,29/04/2019,Premises Related Expenditure,94936,COMMUNITIES
"4,000.00",Newark & Sherwood District Council,Capital Expenditure,Communties,Warm Homes On Prescription,0337,Contractors-Supplies & Servs,04/06/2019,Supplies & Services,96501,CAPITAL
"3,945.50",Lodge Tyre Co.Ltd,Neighbourhoods,Waste & Fleet Management,Waste Collection,8403,Tyres,04/06/2019,Transport Related Expenditure,96900,NEIGHBOURHOODS
"3,922.63",Print Image Network Ltd,Finance & Corporate Services,Democratic Services,Borough Council Elections,1021,External Printing,01/05/2019,Supplies & Services,95852,FINANCE & CORPORATE SERVICES
"3,920.53",Frontline Recruitment Ltd,Neighbourhoods,Waste & Fleet Management,Waste Collection,8403,Agency Staff,19/06/2019,Employee Related Expenditure,96903,NEIGHBOURHOODS
"3,790.50",Bt Telephone Payment Centre,Transformation,Ict,It Rechargeable Costs,4722,Maintenance Contracts - S&S,24/05/2019,Supplies & Services,96487,TRANSFORMATION
"3,758.48",Terberg Matec Uk Limited,Neighbourhoods,Waste & Fleet Management,Fleet,8600,Licences - General,24/04/2019,Transport Related Expenditure,91903,NEIGHBOURHOODS
"3,736.00",Royal Mail Group Ltd,Finance & Corporate Services,Democratic Services,Borough Council Elections,1021,Postages,15/05/2019,Supplies & Services,96087,FINANCE & CORPORATE SERVICES
"3,722.30",Local Government Association,Transformation,Human Resources,Corporate Training,4893,Training Expenses,07/06/2019,Employee Related Expenditure,96720,TRANSFORMATION
"3,717.00",Barton In Fabis Parish Council,General Fund Summary,Cies,Parish Council Precepts,1990,Parish Precepts,24/04/2019,Transfers Expenditure,95377,TRANSFORMATION
"3,690.00",Cipfa Business Limited,Finance & Corporate Services,Financial Services,Financial Services,4705,Subscriptions,17/04/2019,Supplies & Services,95569,FINANCE & CORPORATE SERVICES
"3,680.00",Thrumpton Parish Council,General Fund Summary,Cies,Parish Council Precepts,1990,Parish Precepts,24/04/2019,Transfers Expenditure,95425,TRANSFORMATION
"3,648.00",Uk Property Rescue Ltd,Neighbourhoods,Environmental Health,Work In Default,1066,Fees & Charges - General,08/05/2019,Income,95361,NEIGHBOURHOODS
"3,525.00",Egbert H Taylor & Co Ltd,Capital Expenditure,Neighbourhoods,Wheeled Bins,0310,Other Equipment/Materials,21/05/2019,Supplies & Services,96415,CAPITAL
"3,495.00",Ra Information Systems,Transformation,Property Services,Property Services,4713,Subscriptions,16/04/2019,Supplies & Services,95465,TRANSFORMATION
"3,475.10",Frontline Recruitment Ltd,Neighbourhoods,Waste & Fleet Management,Waste Collection,8403,Agency Staff,21/05/2019,Employee Related Expenditure,96434,NEIGHBOURHOODS
"3,384.48",Frontline Recruitment Ltd,Neighbourhoods,Waste & Fleet Management,Waste Collection,8403,Agency Staff,16/04/2019,Employee Related Expenditure,95353,NEIGHBOURHOODS
"3,339.16",Severn Trent Water,Neighbourhoods,Waste & Fleet Management,Abbey Road Depot,4001,Sewerage & Environmental,19/06/2019,Premises Related Expenditure,97148,NEIGHBOURHOODS
"3,321.72",Xerox (Uk) Limited,Capital Expenditure,Transformation & Innovation,Technical Infrastructure,0603,Computer Hardware,15/05/2019,Supplies & Services,96082,CAPITAL
"3,250.00",Peter Brett Associates Llp,Communities,Planning & Growth,Development Control,1161,Legal & Professional Services,19/06/2019,Supplies & Services,96906,COMMUNITIES
"3,250.00",Reed Business Information Ltd,Transformation,Human Resources,Human Resources,4709,Subscriptions,17/04/2019,Supplies & Services,95038,TRANSFORMATION
"3,232.64",Abacus Lighting Limited,Communities,Community Development,Gresham,8950,Responsive Works - Buildings,29/04/2019,Premises Related Expenditure,95199,COMMUNITIES
"3,168.00",Frontline Recruitment Ltd,Neighbourhoods,Waste & Fleet Management,Waste Collection,8403,Agency Staff,21/05/2019,Employee Related Expenditure,96085,NEIGHBOURHOODS
"3,163.20",The Saville Group Limited,Finance & Corporate Services,Democratic Services,Borough Council Elections,1021,Hire Of It Equipt,19/06/2019,Supplies & Services,97218,FINANCE & CORPORATE SERVICES
"3,114.80",Nottinghamshire County Council,Neighbourhoods,Waste & Fleet Management,Medical Collections,8422,Other Income,24/04/2019,Income,95187,NEIGHBOURHOODS
"3,103.12",David P Forman Bdc Ltd,Capital Expenditure,Neighbourhoods,Disabled Facilities Grant,0332,Grants,19/06/2019,Supplies & Services,97335,CAPITAL
"3,098.16",Frontline Recruitment Ltd,Neighbourhoods,Waste & Fleet Management,Waste Collection,8403,Agency Staff,16/04/2019,Employee Related Expenditure,95120,NEIGHBOURHOODS
"3,083.27",Frontline Recruitment Ltd,Neighbourhoods,Waste & Fleet Management,Waste Collection,8403,Agency Staff,16/04/2019,Employee Related Expenditure,95015,NEIGHBOURHOODS
"3,022.00",Bradmore Parish Council,General Fund Summary,Cies,Parish Council Precepts,1990,Parish Precepts,24/04/2019,Transfers Expenditure,95380,TRANSFORMATION
"3,000.00",Web-Labs,Transformation,Ict,It Rechargeable Costs,4722,Maintenance Contracts - S&S,12/06/2019,Supplies & Services,96998,TRANSFORMATION
"2,927.25",Idox Software Limited (Elections),Finance & Corporate Services,Democratic Services,Borough Council Elections,1021,Election Fees,04/06/2019,Employee Related Expenditure,96499,FINANCE & CORPORATE SERVICES
"2,913.03",Broxtowe Borough Council,Neighbourhoods,Environmental Health,Licences - General,1029,Legal & Professional Services,16/04/2019,Supplies & Services,95451,NEIGHBOURHOODS
"2,875.00",Temperature Control Limited,Transformation,Property Services,Arena Civic Centre,4718,Service Maintenance Contracts,07/06/2019,Premises Related Expenditure,96932,TRANSFORMATION
"2,875.00",Western Power Distribution (East Mids),Capital Expenditure,Transformation & Innovation,Cotgrave Phase 2,0387,Legal & Professional Services,08/05/2019,Supplies & Services,96020,CAPITAL
"2,867.04",Frontline Recruitment Ltd,Neighbourhoods,Waste & Fleet Management,Waste Collection,8403,Agency Staff,29/04/2019,Employee Related Expenditure,95648,NEIGHBOURHOODS
"2,835.00",Rsm,Finance & Corporate Services,Financial Services,Internal Audit,4708,Legal & Professional Services,03/04/2019,Supplies & Services,94954,FINANCE & CORPORATE SERVICES
"2,825.00",University Of Leicester,Communities,Planning & Growth,Development Control,1161,Training Expenses,27/06/2019,Employee Related Expenditure,97545,COMMUNITIES
"2,811.45",Severn Trent Water,Neighbourhoods,Waste & Fleet Management,Tanker Services,1948,Waste Disposal,12/06/2019,Supplies & Services,96190,NEIGHBOURHOODS
"2,800.00",Envitech Europe Ltd,Neighbourhoods,Environmental Health,Pollution Control,1050,Other Miscellaneous Expenses,29/05/2019,Supplies & Services,96631,NEIGHBOURHOODS
"2,771.00",A R Signs Ltd,Finance & Corporate Services,"Performance, Repn & Comms",Performance And Reputation,4710,External Printing,29/04/2019,Supplies & Services,95291,FINANCE & CORPORATE SERVICES
"2,770.57",The South Wolds Academy And Sixth Form,Neighbourhoods,Leisure Contracts & Car Parks,Leisure Management Contract,1795,Water Charges,12/06/2019,Premises Related Expenditure,97013,FINANCE & CORPORATE SERVICES
"2,665.27",Adnix Uk Limited,Assets,Current Assets,European Election,7102,Hire Of Rooms,29/05/2019,Supplies & Services,95232,FINANCE & CORPORATE SERVICES
"2,665.27",Adnix Uk Limited,Finance & Corporate Services,Democratic Services,Borough Council Elections,1021,Hire Of Rooms,08/05/2019,Supplies & Services,95260,FINANCE & CORPORATE SERVICES
"2,665.26",Adnix Uk Limited,Assets,Current Assets,European Election,7102,Hire Of Rooms,11/04/2019,Supplies & Services,95231,FINANCE & CORPORATE SERVICES
"2,665.26",Adnix Uk Limited,Finance & Corporate Services,Democratic Services,Borough Council Elections,1021,Hire Of Rooms,16/04/2019,Supplies & Services,95259,FINANCE & CORPORATE SERVICES
"2,600.00",Couch Perry & Wilkes,Capital Expenditure,Transformation & Innovation,Cotgrave Phase 2,0387,Legal & Professional Services,09/05/2019,Supplies & Services,95280,CAPITAL
"2,590.60",Streetwise Environmental Ltd,Communities,Community Development,Parks & Playing Fields-Gen,8910,Responsive Works - Buildings,12/06/2019,Premises Related Expenditure,96934,COMMUNITIES
"2,590.00",Nottinghamshire County Council,Communities,Planning Policy,Land Charges,1033,Other Services,07/06/2019,Supplies & Services,97004,COMMUNITIES
"2,558.47",Zurich Municipal,Finance & Corporate Services,Financial Services,Main Premiums,4920,Miscellaneous Insurances,24/04/2019,Supplies & Services,95197,FINANCE & CORPORATE SERVICES
"2,536.95",Ghm Planning Limited,Communities,Planning & Growth,Development Control,1161,Agency Staff,07/06/2019,Employee Related Expenditure,96155,COMMUNITIES
"2,535.35",Royal Mail Group Ltd,Transformation,Bsu,Central Mail,4871,Postages,13/05/2019,Supplies & Services,95843,TRANSFORMATION
"2,500.00",Chl Foundation,Communities,Community Development,Health Development,1058,Grants,04/06/2019,Supplies & Services,96523,COMMUNITIES
"2,450.00",Via East Midlands,Capital Expenditure,Communties,Skateboard Parks,0667,Legal & Professional Services,24/05/2019,Supplies & Services,96308,CAPITAL
"2,403.39",Alpha Heating (Chesterfield) Ltd,Capital Expenditure,Transformation & Innovation,Property Heating Upgrades,0351,Contractors-Third Party,01/05/2019,Third Party Payments,95630,CAPITAL
"2,400.00",Fisher Hargreaves Proctor,Transformation,Property Services,The Point,1886,Legal & Professional Services,29/04/2019,Supplies & Services,95449,TRANSFORMATION
"2,349.40",Print Image Network Ltd,Finance & Corporate Services,Democratic Services,Borough Council Elections,1021,External Printing,14/06/2019,Supplies & Services,97190,FINANCE & CORPORATE SERVICES
"2,331.29",Prism Medical Uk Ltd,Capital Expenditure,Neighbourhoods,Disabled Facilities Grant,0332,Grants,24/06/2019,Supplies & Services,97498,CAPITAL
"2,322.00",Advanced Protection Systems Ltd,Capital Expenditure,Transformation & Innovation,Arena Car Park,0336,Contractors-Third Party,09/04/2019,Third Party Payments,88821,CAPITAL
"2,315.38",British Gas Business,Transformation,Property Services,"Colliers, Cotgrave",1898,Electricity,24/06/2019,Premises Related Expenditure,95844,TRANSFORMATION
"2,300.00",Love Food Live Ltd,Communities,Community Development,Arts,1550,Projects & Activities,27/06/2019,Supplies & Services,97495,COMMUNITIES
"2,250.00",Penna Plc,Finance & Corporate Services,Legal,Legal Services,4701,Interview Expenses,03/05/2019,Employee Related Expenditure,95625,FINANCE & CORPORATE SERVICES
"2,250.00",Penna Plc,Transformation,Human Resources,Human Resources,4709,Legal & Professional Services,14/06/2019,Supplies & Services,97152,TRANSFORMATION
"2,250.00",Sarah Mcnicol Coaching,Transformation,Human Resources,Corporate Training,4893,Training Expenses,11/04/2019,Employee Related Expenditure,95101,TRANSFORMATION
"2,231.54",Royal Mail Group Ltd,Transformation,Bsu,Central Mail,4871,Postages,29/04/2019,Supplies & Services,95235,TRANSFORMATION
"2,222.56",Cadent Gas Limited,Capital Expenditure,Transformation & Innovation,Cotgrave Phase 2,0387,Legal & Professional Services,29/04/2019,Supplies & Services,95839,CAPITAL
"2,222.56",Cadent Gas Limited,Capital Expenditure,Transformation & Innovation,Cotgrave Phase 2,0387,Legal & Professional Services,13/05/2019,Supplies & Services,96214,CAPITAL
"2,219.80",British Gas Business,Neighbourhoods,Waste & Fleet Management,Abbey Road Depot,4001,Electricity,29/04/2019,Premises Related Expenditure,95675,NEIGHBOURHOODS
"2,200.98",Hotpots Cafe,Capital Expenditure,Transformation & Innovation,Cotgrave Masterplan,0303,Legal & Professional Services,22/05/2019,Supplies & Services,96526,CAPITAL
"2,177.99",Stapletons Lock And Safe,Capital Expenditure,Neighbourhoods,Disabled Facilities Grant,0332,Grants,04/04/2019,Supplies & Services,95012,CAPITAL
"2,172.20",Streetwise Environmental Ltd,Communities,Community Development,Environmental Promotion,1590,Contractors-Supplies & Servs,16/04/2019,Supplies & Services,95440,COMMUNITIES
"2,169.11",Killgerm Chemicals Ltd,Neighbourhoods,Environmental Health,Pest Control,1062,Other Equipment/Materials,09/04/2019,Supplies & Services,95118,NEIGHBOURHOODS
"2,159.07",Water Plus,Neighbourhoods,Waste & Fleet Management,Abbey Road Depot,4001,Water Charges,09/04/2019,Premises Related Expenditure,95111,NEIGHBOURHOODS
"2,152.04",Vertiv Infrastructure Limited,Transformation,Ict,It Rechargeable Costs,4722,Maintenance Contracts - S&S,24/06/2019,Supplies & Services,97045,TRANSFORMATION
"2,116.00",Print Image Network Ltd,Finance & Corporate Services,Democratic Services,Borough Council Elections,1021,External Printing,27/06/2019,Supplies & Services,97409,FINANCE & CORPORATE SERVICES
"2,075.10",Severn Trent Water,Neighbourhoods,Waste & Fleet Management,Abbey Road Depot,4001,Sewerage & Environmental,24/04/2019,Premises Related Expenditure,95166,NEIGHBOURHOODS
"2,033.00",West Leake Parish Meeting,General Fund Summary,Cies,Parish Council Precepts,1990,Parish Precepts,24/04/2019,Transfers Expenditure,95429,TRANSFORMATION
"2,020.61",Dta Electrical,Capital Expenditure,Transformation & Innovation,The Point,0360,Contractors-Third Party,24/04/2019,Third Party Payments,95470,CAPITAL
"2,016.41",Bsp Consulting,Capital Expenditure,Transformation & Innovation,Cotgrave Masterplan,0303,Legal & Professional Services,14/06/2019,Supplies & Services,96883,CAPITAL
"2,003.34",Service Level Management Ltd,Transformation,Bsu,Central Mail,4871,Postages,04/06/2019,Supplies & Services,96174,TRANSFORMATION
"2,000.00",Bentley Project Management,Capital Expenditure,Transformation & Innovation,Cotgrave Masterplan,0303,Legal & Professional Services,17/04/2019,Supplies & Services,95049,CAPITAL
"2,000.00",Bentley Project Management,Capital Expenditure,Transformation & Innovation,Cotgrave Masterplan,0303,Legal & Professional Services,15/05/2019,Supplies & Services,96119,CAPITAL
"2,000.00",Bentley Project Management,Capital Expenditure,Transformation & Innovation,Cotgrave Masterplan,0303,Legal & Professional Services,14/06/2019,Supplies & Services,96991,CAPITAL
"2,000.00",Rja Consultants,Capital Income,Capital Receipts,Disposal Depot Site,0952,Legal & Professional Services,27/06/2019,Supplies & Services,97179,CAPITAL
"1,997.40",Streetwise Environmental Ltd,Capital Expenditure,Communties,The Hook Play Area,0660,Other Equipment/Materials,29/04/2019,Supplies & Services,95462,CAPITAL
"1,995.49",R.M.S Construction & Developments Limited,Capital Expenditure,Communties,Warm Homes On Prescription,0337,Grants,22/05/2019,Supplies & Services,96403,CAPITAL
"1,990.00",Red Umbrella,Transformation,Human Resources,Corporate Training,4893,Training Expenses,29/05/2019,Employee Related Expenditure,96028,TRANSFORMATION
"1,960.00",Fosse Contracts Limited,Capital Expenditure,Communties,The Hook Play Area,0660,Contractors-Third Party,04/06/2019,Third Party Payments,96491,CAPITAL
"1,934.26",Royal Mail Group Ltd,Transformation,Bsu,Central Mail,4871,Postages,24/05/2019,Supplies & Services,96147,TRANSFORMATION
"1,925.00",Nottingham City Council,Finance & Corporate Services,Democratic Services,Members Services,1000,Olas - Nottm City Council,11/04/2019,Third Party Payments,95128,FINANCE & CORPORATE SERVICES
"1,920.00",Bsp Consulting,Capital Expenditure,Transformation & Innovation,Cotgrave Masterplan,0303,Legal & Professional Services,13/05/2019,Supplies & Services,96112,CAPITAL
"1,902.59",Corona Energy Retail 3 Ltd,Neighbourhoods,Waste & Fleet Management,Abbey Road Depot,4001,Gas,15/05/2019,Premises Related Expenditure,96222,NEIGHBOURHOODS
"1,874.00",Dolphin Mobility East Mids Ltd,Capital Expenditure,Neighbourhoods,Disabled Facilities Grant,0332,Grants,12/06/2019,Supplies & Services,96835,CAPITAL
"1,862.79",British Gas Business,Neighbourhoods,Waste & Fleet Management,Abbey Road Depot,4001,Electricity,15/05/2019,Premises Related Expenditure,96135,NEIGHBOURHOODS
"1,827.07",Nsl Limited,Neighbourhoods,Leisure Contracts & Car Parks,Car Parks,1900,Maintenance Contracts - S&S,24/04/2019,Supplies & Services,95011,FINANCE & CORPORATE SERVICES
"1,825.00",Matts Monitors Ltd,Neighbourhoods,Environmental Health,Pollution Control,1050,Other Miscellaneous Expenses,04/04/2019,Supplies & Services,95010,NEIGHBOURHOODS
"1,824.00",Environment Agency,Neighbourhoods,Waste & Fleet Management,Abbey Road Depot,4001,Responsive Works - Buildings,01/05/2019,Premises Related Expenditure,95788,NEIGHBOURHOODS
"1,810.00",South Notts Fabrications Ltd,Communities,Community Development,Gresham,8950,Responsive Works - Buildings,24/05/2019,Premises Related Expenditure,96321,COMMUNITIES
"1,786.54",Nsl Limited,Neighbourhoods,Leisure Contracts & Car Parks,Car Parks,1900,Maintenance Contracts - S&S,15/05/2019,Supplies & Services,95950,FINANCE & CORPORATE SERVICES
"1,783.90",Nsl Limited,Neighbourhoods,Leisure Contracts & Car Parks,Car Parks,1900,Maintenance Contracts - S&S,14/06/2019,Supplies & Services,96833,FINANCE & CORPORATE SERVICES
"1,760.00",York Archaeological Trust,Capital Expenditure,Transformation & Innovation,Cotgrave Masterplan,0303,Legal & Professional Services,27/06/2019,Supplies & Services,96914,CAPITAL
"1,750.00",East Midlands Chamber,Transformation,Economic Regeneration,Economic Development,1887,Other Services,27/06/2019,Supplies & Services,97652,TRANSFORMATION
"1,710.00",Ludlow Hill Mot Centre,Neighbourhoods,Environmental Health,Hackney Carriage/Private Hire,1031,Contractors-Transport,27/06/2019,Transport Related Expenditure,97639,NEIGHBOURHOODS
"1,705.61",Phoenix Software,Transformation,Ict,It Rechargeable Costs,4722,Maintenance Contracts - S&S,04/06/2019,Supplies & Services,96571,TRANSFORMATION
"1,700.00",Nottingham City Council,Transformation,Human Resources,Human Resources,4709,Advertising,27/06/2019,Supplies & Services,97415,TRANSFORMATION
"1,700.00",Sibthorpe Parish Meeting,General Fund Summary,Cies,Parish Council Precepts,1990,Parish Precepts,24/04/2019,Transfers Expenditure,95420,TRANSFORMATION
"1,690.24",Imperial Polythene Products Ltd,Neighbourhoods,Waste & Fleet Management,Medical Collections,8422,Other Equipment/Materials,24/05/2019,Supplies & Services,96325,NEIGHBOURHOODS
"1,687.50",Select Forms Limited,Finance & Corporate Services,Financial Services,Financial Services,4705,External Printing,24/05/2019,Supplies & Services,96408,FINANCE & CORPORATE SERVICES
"1,686.12",Royal Mail Group Ltd,Transformation,Bsu,Central Mail,4871,Postages,19/06/2019,Supplies & Services,96739,TRANSFORMATION
"1,685.73",Telefonica Uk Limited,Transformation,Ict,Telephones,4870,Mobiles,13/05/2019,Supplies & Services,95643,TRANSFORMATION
"1,676.22",Abacus Lighting Limited,Communities,Community Development,Gresham,8950,Service Maintenance Contracts,15/05/2019,Premises Related Expenditure,95972,COMMUNITIES
"1,669.30",Central Fire Systems Ltd,Neighbourhoods,Leisure Contracts & Car Parks,Leisure Management Contract,1795,Responsive Works - Buildings,24/04/2019,Premises Related Expenditure,95139,FINANCE & CORPORATE SERVICES
"1,629.87",Service Level Management Ltd,Transformation,Bsu,Central Mail,4871,Postages,29/04/2019,Supplies & Services,95046,TRANSFORMATION
"1,629.00",Hiring Wizard,Communities,Planning & Growth,Development Control,1161,Employee Advertising,29/05/2019,Employee Related Expenditure,96496,COMMUNITIES
"1,626.81",Premier Mobility (Uk) Ltd,Capital Expenditure,Neighbourhoods,Disabled Facilities Grant,0332,Grants,31/05/2019,Supplies & Services,96566,CAPITAL
"1,620.00",Ludlow Hill Mot Centre,Neighbourhoods,Environmental Health,Hackney Carriage/Private Hire,1031,Contractors-Transport,27/06/2019,Transport Related Expenditure,97644,NEIGHBOURHOODS
"1,612.96",Edf Energy,Neighbourhoods,Leisure Contracts & Car Parks,Car Parks,1900,Electricity,19/06/2019,Premises Related Expenditure,96714,FINANCE & CORPORATE SERVICES
"1,606.40",Royal Mail Group Ltd,Transformation,Bsu,Central Mail,4871,Postages,24/05/2019,Supplies & Services,96149,TRANSFORMATION
"1,596.46",Western Power Distribution (East Mids),Capital Expenditure,Transformation & Innovation,Cotgrave Phase 2,0387,Legal & Professional Services,11/04/2019,Supplies & Services,95142,CAPITAL
"1,553.40",Mocha Furniture Ltd,Transformation,Ict,It Rechargeable Costs,4722,Consumables,12/06/2019,Supplies & Services,96233,TRANSFORMATION
"1,542.00",Iken Business Ltd,Capital Expenditure,Transformation & Innovation,Digital Strategy,0604,Software,27/06/2019,Supplies & Services,97632,CAPITAL
"1,535.00",Newark & Sherwood District Council,Neighbourhoods,Waste & Fleet Management,Glass Recycling & Bring Sites,8407,Other Equipment/Materials,11/04/2019,Supplies & Services,95281,NEIGHBOURHOODS
"1,500.00",Derbyshire County Council,Communities,Community Development,Environmental Promotion,1590,Subscriptions,21/05/2019,Supplies & Services,96419,COMMUNITIES
"1,500.00",Maltby & Company,Neighbourhoods,Leisure Contracts & Car Parks,Car Parks,1900,Service Maintenance Contracts,03/04/2019,Premises Related Expenditure,94980,FINANCE & CORPORATE SERVICES
"1,494.99",Reach Publishing Services Limited,Communities,Planning & Growth,Development Control,1161,Advertising,01/05/2019,Supplies & Services,95805,COMMUNITIES
"1,475.00",C A Wood T/A Orange Wood Design,Finance & Corporate Services,"Performance, Repn & Comms",Performance And Reputation,4710,Legal & Professional Services,04/06/2019,Supplies & Services,96936,FINANCE & CORPORATE SERVICES
"1,450.00",Bartec Auto Id Ltd,Neighbourhoods,Waste & Fleet Management,Waste Collection,8403,Contractors-Supplies & Servs,24/05/2019,Supplies & Services,96015,NEIGHBOURHOODS
"1,439.18",Staddon & Sons (Nottingham Ltd),Neighbourhoods,Strategic Housing,Hostel Hound Lodge,1111,Other Equipment/Materials,14/06/2019,Supplies & Services,97348,NEIGHBOURHOODS
"1,422.34",Royal Mail Group Ltd,Transformation,Bsu,Central Mail,4871,Postages,19/06/2019,Supplies & Services,96807,TRANSFORMATION
"1,414.00",Egbert H Taylor & Co Ltd,Capital Expenditure,Neighbourhoods,Wheeled Bins,0310,Other Equipment/Materials,03/04/2019,Supplies & Services,94478,CAPITAL
"1,412.00",Jne Security Ltd,Neighbourhoods,Environmental Health,Community Safety,1598,Projects & Activities,07/06/2019,Supplies & Services,96918,NEIGHBOURHOODS
"1,401.54",Severn Trent Water,Finance & Corporate Services,Financial Services,Suspense No Code,5224,Returned Creditors,04/06/2019,Returned Creditors,96811,FINANCE & CORPORATE SERVICES
"1,400.00",Blade Runners Commercial Ltd,Transformation,Property Services,Arena Civic Centre,4718,Contract Cleaning,14/06/2019,Premises Related Expenditure,97008,TRANSFORMATION
"1,395.00",Ludlow Hill Mot Centre,Neighbourhoods,Environmental Health,Hackney Carriage/Private Hire,1031,Contractors-Transport,27/06/2019,Transport Related Expenditure,97619,NEIGHBOURHOODS
"1,378.36",Maltby & Company,Capital Expenditure,Transformation & Innovation,Bridgford Hall Refurbishment,0382,Contractors-Third Party,14/06/2019,Third Party Payments,96885,CAPITAL
"1,373.90",Telefonica Uk Limited,Transformation,Ict,Telephones,4870,Mobiles,12/06/2019,Supplies & Services,96508,TRANSFORMATION
"1,368.95",Telefonica Uk Limited,Transformation,Ict,Telephones,4870,Mobiles,11/04/2019,Supplies & Services,94499,TRANSFORMATION
"1,351.31",Royal Mail Group Ltd,Transformation,Bsu,Central Mail,4871,Postages,13/05/2019,Supplies & Services,95545,TRANSFORMATION
"1,344.39",The South Wolds Academy And Sixth Form,Neighbourhoods,Leisure Contracts & Car Parks,Leisure Management Contract,1795,Gas,13/05/2019,Premises Related Expenditure,95821,FINANCE & CORPORATE SERVICES
"1,341.55",British Gas Business,Neighbourhoods,Waste & Fleet Management,Abbey Road Depot,4001,Electricity,19/06/2019,Premises Related Expenditure,97163,NEIGHBOURHOODS
"1,337.30",As Enterprises Limited,Capital Expenditure,Transformation & Innovation,Cotgrave Masterplan,0303,Legal & Professional Services,07/06/2019,Supplies & Services,97014,CAPITAL
"1,325.00",C A Wood T/A Orange Wood Design,Finance & Corporate Services,"Performance, Repn & Comms",Performance And Reputation,4710,Legal & Professional Services,09/04/2019,Supplies & Services,94921,FINANCE & CORPORATE SERVICES
"1,320.00",Carrington West Limited,Communities,Planning & Growth,Development Control,1161,Agency Staff,12/06/2019,Employee Related Expenditure,96899,COMMUNITIES
"1,320.00",Carrington West Limited,Communities,Planning & Growth,Development Control,1161,Agency Staff,27/06/2019,Employee Related Expenditure,97441,COMMUNITIES
"1,320.00",Carrington West Limited,Communities,Planning & Growth,Development Control,1161,Agency Staff,27/06/2019,Employee Related Expenditure,97542,COMMUNITIES
"1,315.77",Service Level Management Ltd,Transformation,Bsu,Central Mail,4871,Postages,29/04/2019,Supplies & Services,95047,TRANSFORMATION
"1,300.00",Couch Perry & Wilkes,Capital Expenditure,Transformation & Innovation,Cotgrave Phase 2,0387,Legal & Professional Services,09/05/2019,Supplies & Services,95850,CAPITAL
"1,272.64",Calor Gas Limited,Communities,Community Development,West Park,8994,Gas,07/06/2019,Premises Related Expenditure,96731,COMMUNITIES
"1,272.00",Lex Leisure,Assets,Current Assets,Bank Accounts,5111,Creditors,14/06/2019,Creditors,97033,FINANCE & CORPORATE SERVICES
"1,260.00",Lex Leisure,Transformation,Bsu,Business Support Unit,4805,Legal & Professional Services,24/04/2019,Supplies & Services,94949,TRANSFORMATION
"1,250.00",Freeths Llp,Capital Expenditure,Transformation & Innovation,Cotgrave Phase 2,0387,Legal & Professional Services,14/06/2019,Supplies & Services,97220,CAPITAL
"1,250.00",Hmrc,Finance & Corporate Services,Financial Services,Apprenticeship Levy,1043,Other Services,29/04/2019,Supplies & Services,95803,FINANCE & CORPORATE SERVICES
"1,250.00",Hmrc,Finance & Corporate Services,Financial Services,Apprenticeship Levy,1043,Other Services,04/06/2019,Supplies & Services,96846,FINANCE & CORPORATE SERVICES
"1,242.00",Nottingham City Council,Neighbourhoods,Waste & Fleet Management,Waste Collection,8403,Training Expenses,03/04/2019,Employee Related Expenditure,94913,NEIGHBOURHOODS
"1,236.00",Ep Consulting Building Services Engineers,Neighbourhoods,Leisure Contracts & Car Parks,Leisure Management Contract,1795,Responsive Works - Buildings,24/04/2019,Premises Related Expenditure,94938,FINANCE & CORPORATE SERVICES
"1,216.83",Co-Operative Funeral Care,Neighbourhoods,Environmental Health,Public Health,1127,Welfare Burials,24/05/2019,Supplies & Services,96180,NEIGHBOURHOODS
"1,200.00",Bsp Consulting,Capital Expenditure,Transformation & Innovation,Cotgrave Masterplan,0303,Legal & Professional Services,11/04/2019,Supplies & Services,95041,CAPITAL
"1,200.00",Lex Leisure,Transformation,Bsu,Business Support Unit,4805,Legal & Professional Services,24/05/2019,Supplies & Services,95921,TRANSFORMATION
"1,199.00",Idapt Llp,Neighbourhoods,Environmental Health,Housing Standards,1129,Subscriptions,17/04/2019,Supplies & Services,95026,NEIGHBOURHOODS
"1,195.24",Creative Flavours Catering Ltd,Finance & Corporate Services,Democratic Services,Mayoral Expenses,1001,Catering Provisions,14/06/2019,Supplies & Services,96748,FINANCE & CORPORATE SERVICES
"1,191.00",Terberg Matec Uk Limited,Neighbourhoods,Waste & Fleet Management,Fleet,8600,Licences - General,24/04/2019,Transport Related Expenditure,95188,NEIGHBOURHOODS
"1,175.00",Park Avenue,Communities,Planning & Growth,Development Control,1161,Agency Staff,13/05/2019,Employee Related Expenditure,96077,COMMUNITIES
"1,170.94",Service Level Management Ltd,Transformation,Bsu,Central Mail,4871,Postages,04/06/2019,Supplies & Services,96173,TRANSFORMATION
"1,168.85",Maltby & Company,Transformation,Property Services,Street Nameplates & Pub. Signs,1920,Contractors-Supplies & Servs,24/05/2019,Supplies & Services,96305,TRANSFORMATION
"1,167.75",Ep Consulting Building Services Engineers,Capital Expenditure,Transformation & Innovation,Cotgrave Masterplan,0303,Legal & Professional Services,04/06/2019,Supplies & Services,96882,CAPITAL
"1,162.50",Park Avenue,Communities,Planning & Growth,Development Control,1161,Agency Staff,19/06/2019,Employee Related Expenditure,96857,COMMUNITIES
"1,162.40",Park Avenue,Communities,Planning & Growth,Development Control,1161,Agency Staff,19/06/2019,Employee Related Expenditure,96984,COMMUNITIES
"1,150.00",Park Avenue,Communities,Planning & Growth,Development Control,1161,Agency Staff,29/04/2019,Employee Related Expenditure,95445,COMMUNITIES
"1,150.00",Park Avenue,Communities,Planning & Growth,Development Control,1161,Agency Staff,29/04/2019,Employee Related Expenditure,95673,COMMUNITIES
"1,150.00",Park Avenue,Communities,Planning & Growth,Development Control,1161,Agency Staff,13/05/2019,Employee Related Expenditure,95837,COMMUNITIES
"1,148.97",Print Image Network Ltd,Finance & Corporate Services,Democratic Services,Electoral Registration,1026,External Printing,14/06/2019,Supplies & Services,96907,FINANCE & CORPORATE SERVICES
"1,148.30",Western Power Distribution (East Mids),Capital Expenditure,Transformation & Innovation,Cotgrave Phase 2,0387,Legal & Professional Services,08/05/2019,Supplies & Services,96017,CAPITAL
"1,145.00",Real Asset Management Plc,Transformation,Ict,It Rechargeable Costs,4722,Maintenance Contracts - S&S,13/05/2019,Supplies & Services,96197,TRANSFORMATION
"1,139.04",Reach Publishing Services Limited,Communities,Planning & Growth,Development Control,1161,Advertising,21/05/2019,Supplies & Services,96338,COMMUNITIES
"1,138.44",British Gas Business,Communities,Community Development,Gresham,8950,Electricity,24/05/2019,Premises Related Expenditure,96422,COMMUNITIES
"1,137.50",Park Avenue,Communities,Planning & Growth,Development Control,1161,Agency Staff,19/06/2019,Employee Related Expenditure,97393,COMMUNITIES
"1,135.00",Nuthall Electrical Services Ltd,Transformation,Property Services,Arena Civic Centre,4718,Responsive Works - Buildings,15/05/2019,Premises Related Expenditure,96183,TRANSFORMATION
"1,125.00",Medigold Health Consultancy Ltd,Neighbourhoods,Environmental Health,Licences - General,1029,Legal & Professional Services,24/06/2019,Supplies & Services,88652,NEIGHBOURHOODS
"1,120.00",Dta Electrical,Transformation,Property Services,Bridgford Hall,1883,Service Maintenance Contracts,12/06/2019,Premises Related Expenditure,96937,TRANSFORMATION
"1,115.00",Northern Hosuing Consortium Limited,Neighbourhoods,Strategic Housing,Choice Based Lettings,1107,Subscriptions,29/04/2019,Supplies & Services,95460,NEIGHBOURHOODS
"1,110.00",Aac Air Conditioning Ltd,Transformation,Economic Regeneration,Cotgrave Precinct,1885,Service Maintenance Contracts,25/04/2019,Premises Related Expenditure,94971,TRANSFORMATION
"1,109.76",It Health Uk Ltd,Transformation,Ict,It Rechargeable Costs,4722,Maintenance Contracts - S&S,17/04/2019,Supplies & Services,94931,TRANSFORMATION
"1,101.75",Reach Publishing Services Limited,Communities,Planning & Growth,Development Control,1161,Advertising,07/06/2019,Supplies & Services,96803,COMMUNITIES
"1,100.00",Integrity Communications Ltd,Capital Expenditure,Transformation & Innovation,Technical Infrastructure,0603,Computer Hardware,03/04/2019,Supplies & Services,95007,CAPITAL
"1,100.00",Park Avenue,Communities,Planning & Growth,Development Control,1161,Agency Staff,04/06/2019,Employee Related Expenditure,96525,COMMUNITIES
"1,094.28",Xerox (Uk) Limited,Transformation,Ict,Photocopiers,5017,Rental & Copy Charges,24/04/2019,Supplies & Services,95122,TRANSFORMATION
"1,091.58",Reach Publishing Services Limited,Communities,Planning & Growth,Development Control,1161,Advertising,29/04/2019,Supplies & Services,95552,COMMUNITIES
"1,090.00",Local Government Association,Finance & Corporate Services,Democratic Services,Members Services,1000,Conferences - Members,13/05/2019,Supplies & Services,95927,FINANCE & CORPORATE SERVICES
"1,077.77",Royal Mail Group Ltd,Transformation,Bsu,Central Mail,4871,Postages,09/04/2019,Supplies & Services,95018,TRANSFORMATION
"1,075.00",Kaplan Altior,Finance & Corporate Services,Legal,Legal Services,4701,Training Expenses,11/04/2019,Employee Related Expenditure,95138,FINANCE & CORPORATE SERVICES
"1,075.00",Park Avenue,Communities,Planning & Growth,Development Control,1161,Agency Staff,19/06/2019,Employee Related Expenditure,97221,COMMUNITIES
"1,068.97",British Gas Business,Communities,Community Development,Gresham,8950,Electricity,29/04/2019,Premises Related Expenditure,95637,COMMUNITIES
"1,068.48",Xerox (Uk) Limited,Transformation,Ict,Photocopiers,5017,Rental & Copy Charges,24/04/2019,Supplies & Services,95121,TRANSFORMATION
"1,063.00",Freight Transport Assoc,Neighbourhoods,Waste & Fleet Management,Fleet,8600,Subscriptions,24/04/2019,Supplies & Services,95367,NEIGHBOURHOODS
"1,050.00",Novelli Associates Ltd,Communities,Community Development,Arts,1550,Projects & Activities,09/04/2019,Supplies & Services,94956,COMMUNITIES
"1,050.00",Park Avenue,Communities,Planning & Growth,Development Control,1161,Agency Staff,11/04/2019,Employee Related Expenditure,94900,COMMUNITIES
"1,050.00",Penna Plc,Transformation,Human Resources,Human Resources,4709,Employee Advertising,03/05/2019,Employee Related Expenditure,86465,TRANSFORMATION
"1,046.92",Royal Mail Group Ltd,Transformation,Bsu,Central Mail,4871,Postages,13/05/2019,Supplies & Services,95485,TRANSFORMATION
"1,045.00",Westcotes House Ltd,Neighbourhoods,Strategic Housing,Homeless B&B,1110,Housing-Emergency Accommodn,29/05/2019,Supplies & Services,96638,NEIGHBOURHOODS
"1,030.00",Survey Hub Ltd,Capital Expenditure,Transformation & Innovation,Cotgrave Phase 2,0387,Legal & Professional Services,12/06/2019,Supplies & Services,96708,CAPITAL
"1,026.00",Uk Property Rescue Ltd,Neighbourhoods,Environmental Health,Work In Default,1066,Fees & Charges - General,25/04/2019,Income,95553,NEIGHBOURHOODS
"1,025.00",Rural Retailers Ltd,Transformation,Property Services,Bingham Market Stalls,1880,Legal & Professional Services,12/06/2019,Supplies & Services,97217,TRANSFORMATION
"1,004.93",Corona Energy Retail 3 Ltd,Neighbourhoods,Waste & Fleet Management,Abbey Road Depot,4001,Gas,24/04/2019,Premises Related Expenditure,95639,NEIGHBOURHOODS
"1,000.00",Air Movement & Fabrications Ltd,Neighbourhoods,Leisure Contracts & Car Parks,Leisure Management Contract,1795,Responsive Works - Buildings,24/04/2019,Premises Related Expenditure,95436,FINANCE & CORPORATE SERVICES
"1,000.00",Rhe Global,Neighbourhoods,Environmental Health,Housing Standards,1129,Subscriptions,21/05/2019,Supplies & Services,95971,NEIGHBOURHOODS
997.04,The Copyright Licensing Agency Limited,Finance & Corporate Services,Legal,Legal Services,4701,Licences,13/05/2019,Supplies & Services,96148,FINANCE & CORPORATE SERVICES
996.00,Medigold Health Consultancy Ltd,Transformation,Human Resources,Human Resources,4709,Occupational Health,24/06/2019,Employee Related Expenditure,96997,TRANSFORMATION
995.20,British Gas Business,Neighbourhoods,Waste & Fleet Management,Abbey Road Depot,4001,Electricity,15/05/2019,Premises Related Expenditure,96220,NEIGHBOURHOODS
993.00,Hp Inc Uk Limited,Transformation,Ict,It Rechargeable Costs,4722,Other Maintenance,13/05/2019,Supplies & Services,96084,TRANSFORMATION
992.35,Reach Publishing Services Limited,Communities,Planning & Growth,Development Control,1161,Advertising,27/06/2019,Supplies & Services,97457,COMMUNITIES
989.13,British Gas Business,Neighbourhoods,Waste & Fleet Management,Abbey Road Depot,4001,Electricity,15/05/2019,Premises Related Expenditure,95638,NEIGHBOURHOODS
983.61,Service Level Management Ltd,Transformation,Bsu,Central Mail,4871,Postages,04/06/2019,Supplies & Services,96175,TRANSFORMATION
978.52,British Gas Business,Neighbourhoods,Waste & Fleet Management,Abbey Road Depot,4001,Electricity,24/06/2019,Premises Related Expenditure,97421,NEIGHBOURHOODS
971.00,A R Signs Ltd,Finance & Corporate Services,"Performance, Repn & Comms",Performance And Reputation,4710,External Printing,16/04/2019,Supplies & Services,95455,FINANCE & CORPORATE SERVICES
929.90,Acs Business Supplies,Capital Expenditure,Transformation & Innovation,Technical Infrastructure,0603,Computer Hardware,11/04/2019,Supplies & Services,95081,CAPITAL
915.00,Broxtowe Borough Council,Neighbourhoods,Leisure Contracts & Car Parks,Car Parks,1900,Other Equipment/Materials,03/04/2019,Supplies & Services,94970,FINANCE & CORPORATE SERVICES
910.24,Haven Power Limited,Transformation,Property Services,Castle Donington,1863,Electricity,24/06/2019,Premises Related Expenditure,96712,NEIGHBOURHOODS
897.00,Pedal Power People Company,Communities,Community Development,Sports Development,1593,Projects & Activities,21/05/2019,Supplies & Services,96241,COMMUNITIES
888.00,Carole Crookes,Communities,Planning Policy,Development Plans,1232,Other Miscellaneous Expenses,03/05/2019,Supplies & Services,95169,COMMUNITIES
885.04,One51 Es Plastics (Uk) Ltd T/A Mgb Plastics,Capital Expenditure,Neighbourhoods,Wheeled Bins,0310,Other Equipment/Materials,17/04/2019,Supplies & Services,95105,CAPITAL
882.35,Freak Marketing Limited,Communities,Community Development,Arts,1550,Projects & Activities,13/05/2019,Supplies & Services,96123,COMMUNITIES
877.64,Eon,Transformation,Economic Regeneration,Msc - Main Building,1876,Electricity,29/04/2019,Premises Related Expenditure,95272,TRANSFORMATION
872.08,Reach Publishing Services Limited,Communities,Planning & Growth,Development Control,1161,Advertising,24/06/2019,Supplies & Services,97209,COMMUNITIES
871.00,A R Signs Ltd,Finance & Corporate Services,"Performance, Repn & Comms",Performance And Reputation,4710,External Printing,09/04/2019,Supplies & Services,94959,FINANCE & CORPORATE SERVICES
870.00,District Councils Network,Finance & Corporate Services,Democratic Services,Members Services,1000,Subscriptions,14/06/2019,Supplies & Services,96224,FINANCE & CORPORATE SERVICES
860.48,Water Plus,Communities,Community Development,Gamston Community Hall,8992,Water Charges,11/04/2019,Premises Related Expenditure,93506,COMMUNITIES
854.28,Reach Publishing Services Limited,Communities,Planning & Growth,Development Control,1161,Advertising,11/04/2019,Supplies & Services,95254,COMMUNITIES
854.00,Maltby & Company,Communities,Community Development,Gamston Community Hall,8992,Responsive Works - Buildings,12/06/2019,Premises Related Expenditure,96888,COMMUNITIES
851.80,Qsp Training,Capital Expenditure,Transformation & Innovation,New Depot,0312,Legal & Professional Services,07/06/2019,Supplies & Services,96848,CAPITAL
841.24,British Gas Business,Communities,Community Development,Gresham,8950,Electricity,27/06/2019,Premises Related Expenditure,97426,COMMUNITIES
840.00,Nottinghamshire County Council,Neighbourhoods,Waste & Fleet Management,Medical Collections,8422,Olas - Notts County Council,24/04/2019,Third Party Payments,95187,NEIGHBOURHOODS
835.00,Clearwater Technology Ltd,Communities,Community Development,Gresham,8950,Responsive Works - Buildings,24/04/2019,Premises Related Expenditure,94928,COMMUNITIES
827.73,Lyreco,Communities,Community Development,Facilities Team,4714,Cleaning Equipment/Materials,24/05/2019,Supplies & Services,96030,COMMUNITIES
821.93,Royal Mail Group Ltd,Transformation,Bsu,Central Mail,4871,Postages,13/05/2019,Supplies & Services,95783,TRANSFORMATION
815.44,Reach Publishing Services Limited,Communities,Planning & Growth,Development Control,1161,Advertising,27/06/2019,Supplies & Services,97641,COMMUNITIES
800.00,Newark & Sherwood District Council,Transformation,Emergency Planning,Emergency Planning,1041,Other Services,13/05/2019,Supplies & Services,95923,TRANSFORMATION
791.35,Service Level Management Ltd,Transformation,Bsu,Central Mail,4871,Postages,04/06/2019,Supplies & Services,96176,TRANSFORMATION
790.00,Hopkins Solicitors,Capital Expenditure,Transformation & Innovation,Cotgrave Masterplan,0303,Legal & Professional Services,09/04/2019,Supplies & Services,94948,CAPITAL
790.00,Maltby & Company,Transformation,Property Services,Land Holdings,1884,Service Maintenance Contracts,03/04/2019,Premises Related Expenditure,94980,TRANSFORMATION
783.09,Reach Publishing Services Limited,Communities,Planning & Growth,Development Control,1161,Advertising,24/05/2019,Supplies & Services,96570,COMMUNITIES
773.43,Severn Trent Searches,Capital Expenditure,Transformation & Innovation,The Crematorium,0684,Legal & Professional Services,16/04/2019,Supplies & Services,95032,CAPITAL
757.36,Haven Power Limited,Transformation,Property Services,Castle Donington,1863,Electricity,24/06/2019,Premises Related Expenditure,96713,NEIGHBOURHOODS
750.00,Dta Electrical,Neighbourhoods,Leisure Contracts & Car Parks,Leisure Management Contract,1795,Responsive Works - Buildings,01/05/2019,Premises Related Expenditure,95634,FINANCE & CORPORATE SERVICES
750.00,Loughborough University,Communities,Community Development,Health Development,1058,Grants,19/06/2019,Supplies & Services,97157,COMMUNITIES
750.00,Medigold Health Consultancy Ltd,Neighbourhoods,Environmental Health,Licences - General,1029,Legal & Professional Services,24/06/2019,Supplies & Services,88650,NEIGHBOURHOODS
750.00,Medigold Health Consultancy Ltd,Transformation,Human Resources,Human Resources,4709,Occupational Health,24/06/2019,Employee Related Expenditure,97510,TRANSFORMATION
750.00,Scarrington Parish Council,General Fund Summary,Cies,Parish Council Precepts,1990,Parish Precepts,24/04/2019,Transfers Expenditure,95417,TRANSFORMATION
750.00,Tameside Mbc,Finance & Corporate Services,Revenues & Benefits,Council Tax,1045,Legal & Professional Services,24/04/2019,Supplies & Services,94991,FINANCE & CORPORATE SERVICES
750.00,Tameside Mbc,Finance & Corporate Services,Revenues & Benefits,Housing Benefits Admin.,1140,Legal & Professional Services,24/04/2019,Supplies & Services,94991,FINANCE & CORPORATE SERVICES
749.40,Tunstall Telecom,Neighbourhoods,Strategic Housing,Home Alarms,1137,Other Equipment/Materials,24/04/2019,Supplies & Services,95177,NEIGHBOURHOODS
748.08,Haven Power Limited,Transformation,Property Services,Castle Donington,1863,Electricity,24/06/2019,Premises Related Expenditure,97150,NEIGHBOURHOODS
747.03,The South Wolds Academy And Sixth Form,Neighbourhoods,Leisure Contracts & Car Parks,Leisure Management Contract,1795,Electricity,24/06/2019,Premises Related Expenditure,97031,FINANCE & CORPORATE SERVICES
743.32,Service Level Management Ltd,Transformation,Bsu,Central Mail,4871,Postages,29/04/2019,Supplies & Services,95045,TRANSFORMATION
739.00,Dotted Eyes Ltd,Communities,Planning Policy,Development Plans,1232,Legal & Professional Services,11/04/2019,Supplies & Services,94968,COMMUNITIES
736.66,Hotpots Cafe,Capital Expenditure,Transformation & Innovation,Cotgrave Masterplan,0303,Legal & Professional Services,27/06/2019,Supplies & Services,97604,CAPITAL
728.41,British Gas Business,Transformation,Property Services,Land Holdings,1884,Electricity,24/04/2019,Premises Related Expenditure,95052,TRANSFORMATION
726.41,The South Wolds Academy And Sixth Form,Neighbourhoods,Leisure Contracts & Car Parks,Leisure Management Contract,1795,Electricity,24/06/2019,Premises Related Expenditure,97030,FINANCE & CORPORATE SERVICES
725.00,Asbestos Management Solutions Limited,Capital Expenditure,Transformation & Innovation,Cotgrave Phase 2,0387,Legal & Professional Services,24/05/2019,Supplies & Services,96236,CAPITAL
720.00,Wellbeing Clinic Ltd,Transformation,Human Resources,Human Resources,4709,Legal & Professional Services,15/05/2019,Supplies & Services,96159,TRANSFORMATION
714.40,Cctv East Midlands Ltd,Transformation,Ict,It Rechargeable Costs,4722,Other Maintenance,21/05/2019,Supplies & Services,96492,TRANSFORMATION
711.90,Reach Publishing Services Limited,Communities,Planning & Growth,Development Control,1161,Advertising,21/05/2019,Supplies & Services,96181,COMMUNITIES
710.00,Euromunicipal Ltd,Neighbourhoods,Waste & Fleet Management,Waste Collection,8403,Hire Of Transport/Plant,17/04/2019,Transport Related Expenditure,95457,NEIGHBOURHOODS
700.00,Advanced Protection Systems Ltd,Capital Expenditure,Transformation & Innovation,Arena Car Park,0336,Contractors-Third Party,08/05/2019,Third Party Payments,95282,CAPITAL
700.00,Cornerstone Barristers,Finance & Corporate Services,Democratic Services,Members Services,1000,Legal & Professional Services,12/06/2019,Supplies & Services,96919,FINANCE & CORPORATE SERVICES
700.00,Medigold Health Consultancy Ltd,Transformation,Human Resources,Human Resources,4709,Occupational Health,24/06/2019,Employee Related Expenditure,94107,TRANSFORMATION
700.00,Nottingham City Council,Transformation,Human Resources,Corporate Training,4893,Training Expenses,03/05/2019,Employee Related Expenditure,94947,TRANSFORMATION
693.46,Xerox (Uk) Limited,Transformation,Ict,Photocopiers,5017,Rental & Copy Charges,24/04/2019,Supplies & Services,95123,TRANSFORMATION
690.00,Fred Brown Car Repairs Limited,Neighbourhoods,Environmental Health,Hackney Carriage/Private Hire,1031,Contractors-Transport,13/05/2019,Transport Related Expenditure,96083,NEIGHBOURHOODS
690.00,Mocha Furniture Ltd,Transformation,Property Services,Arena Civic Centre,4718,Other Equipment/Materials,24/05/2019,Supplies & Services,96232,TRANSFORMATION
690.00,Notts County Council,Neighbourhoods,Environmental Health,Community Safety,1598,Projects & Activities,21/05/2019,Supplies & Services,96198,NEIGHBOURHOODS
684.60,Cotgrave Town Council,Transformation,Economic Regeneration,Cotgrave Precinct,1885,Grounds Maintenance,07/06/2019,Premises Related Expenditure,96927,TRANSFORMATION
684.60,Cotgrave Town Council,Transformation,Economic Regeneration,Cotgrave Precinct,1885,Grounds Maintenance,07/06/2019,Premises Related Expenditure,96929,TRANSFORMATION
675.00,Baker Consultants Ltd,Capital Expenditure,Transformation & Innovation,Cotgrave Masterplan,0303,Legal & Professional Services,15/05/2019,Supplies & Services,95969,CAPITAL
675.00,Medigold Health Consultancy Ltd,Neighbourhoods,Environmental Health,Licences - General,1029,Legal & Professional Services,24/06/2019,Supplies & Services,88649,NEIGHBOURHOODS
664.94,Xerox (Uk) Limited,Capital Expenditure,Transformation & Innovation,Technical Infrastructure,0603,Computer Hardware,15/05/2019,Supplies & Services,96047,CAPITAL
664.44,Reach Publishing Services Limited,Communities,Planning & Growth,Development Control,1161,Advertising,07/06/2019,Supplies & Services,97005,COMMUNITIES
661.64,The South Wolds Academy And Sixth Form,Neighbourhoods,Leisure Contracts & Car Parks,Leisure Management Contract,1795,Water Charges,24/06/2019,Premises Related Expenditure,97012,FINANCE & CORPORATE SERVICES
660.00,Fred Brown Car Repairs Limited,Neighbourhoods,Environmental Health,Hackney Carriage/Private Hire,1031,Contractors-Transport,07/06/2019,Transport Related Expenditure,96898,NEIGHBOURHOODS
660.00,St John'S Chambers,Capital Expenditure,Transformation & Innovation,The Crematorium,0684,Legal & Professional Services,25/04/2019,Supplies & Services,95242,CAPITAL
655.56,Nottinghamshire County Council,Neighbourhoods,Leisure Contracts & Car Parks,Leisure Management Contract,1795,Grounds Maintenance,01/05/2019,Premises Related Expenditure,95791,FINANCE & CORPORATE SERVICES
655.56,Nottinghamshire County Council,Neighbourhoods,Leisure Contracts & Car Parks,Leisure Management Contract,1795,Grounds Maintenance,13/05/2019,Premises Related Expenditure,96029,FINANCE & CORPORATE SERVICES
655.56,Nottinghamshire County Council,Neighbourhoods,Leisure Contracts & Car Parks,Leisure Management Contract,1795,Grounds Maintenance,07/06/2019,Premises Related Expenditure,96853,FINANCE & CORPORATE SERVICES
650.00,Hex Productions,Finance & Corporate Services,"Performance, Repn & Comms",Performance And Reputation,4710,Legal & Professional Services,01/05/2019,Supplies & Services,95952,FINANCE & CORPORATE SERVICES
650.00,Hex Productions,Finance & Corporate Services,"Performance, Repn & Comms",Performance And Reputation,4710,Legal & Professional Services,01/05/2019,Supplies & Services,95953,FINANCE & CORPORATE SERVICES
650.00,Hex Productions,Finance & Corporate Services,"Performance, Repn & Comms",Performance And Reputation,4710,Legal & Professional Services,04/06/2019,Supplies & Services,96856,FINANCE & CORPORATE SERVICES
650.00,Rsm,Finance & Corporate Services,Financial Services,Internal Audit,4708,Legal & Professional Services,04/06/2019,Supplies & Services,96749,FINANCE & CORPORATE SERVICES
650.00,The Treecology Team Ltd,Communities,Community Development,Rushcliffe Country Park,1375,Other Equipment/Materials,08/05/2019,Supplies & Services,96022,COMMUNITIES
645.00,Nottinghamshire Wildlife Trust,Communities,Community Development,Environmental Promotion,1590,Legal & Professional Services,04/06/2019,Supplies & Services,96518,COMMUNITIES
636.00,Parkwood Community Leisure Ltd,Assets,Current Assets,European Election,7102,Hire Of Rooms,12/06/2019,Supplies & Services,97102,FINANCE & CORPORATE SERVICES
636.00,Parkwood Community Leisure Ltd,Finance & Corporate Services,Democratic Services,Borough Council Elections,1021,Hire Of Rooms,22/05/2019,Supplies & Services,96444,FINANCE & CORPORATE SERVICES
627.00,P.Waller (Decorators) Ltd,Neighbourhoods,Strategic Housing,Hostel Hound Lodge,1111,Responsive Works - Buildings,27/06/2019,Premises Related Expenditure,97597,NEIGHBOURHOODS
625.00,Countrywide Residential,Neighbourhoods,Strategic Housing,Homelessness Prevention,1147,Projects & Activities,29/05/2019,Supplies & Services,96738,NEIGHBOURHOODS
621.59,Print Image Network Ltd,Finance & Corporate Services,Democratic Services,Electoral Registration,1026,External Printing,11/04/2019,Supplies & Services,94914,FINANCE & CORPORATE SERVICES
614.06,Maltby & Company,Transformation,Property Services,The Point,1886,Responsive Works - Buildings,01/05/2019,Premises Related Expenditure,94982,TRANSFORMATION
606.20,Castle Water Limited,Neighbourhoods,Waste & Fleet Management,Abbey Road Depot,4001,Water Charges,29/04/2019,Premises Related Expenditure,95664,NEIGHBOURHOODS
606.00,Paul Tinsley Decorating,Capital Expenditure,Neighbourhoods,Arena Development,0415,Responsive Works - Buildings,31/05/2019,Premises Related Expenditure,96734,CAPITAL
601.17,Reach Publishing Services Limited,Communities,Planning & Growth,Development Control,1161,Advertising,05/04/2019,Supplies & Services,95098,COMMUNITIES
600.00,Derbyshire County Council,Communities,Community Development,Environmental Promotion,1590,Legal & Professional Services,21/05/2019,Supplies & Services,96419,COMMUNITIES
600.00,Nottingham Radio Communication,Communities,Community Development,Tour Of Britain 2018,1583,Projects & Activities,09/04/2019,Supplies & Services,95203,COMMUNITIES
600.00,Shelton Parish Meeting,General Fund Summary,Cies,Parish Council Precepts,1990,Parish Precepts,24/04/2019,Transfers Expenditure,95419,TRANSFORMATION
600.00,The Nottingham Hoods Basketball Club,Finance & Corporate Services,Financial Services,Suspense No Code,5224,Returned Creditors,16/04/2019,Returned Creditors,95264,FINANCE & CORPORATE SERVICES
592.00,Medigold Health Consultancy Ltd,Transformation,Human Resources,Human Resources,4709,Occupational Health,24/06/2019,Employee Related Expenditure,96171,TRANSFORMATION
590.00,Apollo Blinds,Neighbourhoods,Strategic Housing,Hostel Hound Lodge,1111,Other Miscellaneous Expenses,11/04/2019,Supplies & Services,94942,NEIGHBOURHOODS
588.00,Maltby & Company,Transformation,Economic Regeneration,Cotgrave Precinct,1885,Responsive Works - Buildings,12/06/2019,Premises Related Expenditure,96889,TRANSFORMATION
588.00,Print Image Network Ltd,Finance & Corporate Services,Democratic Services,Borough Council Elections,1021,External Printing,21/05/2019,Supplies & Services,96404,FINANCE & CORPORATE SERVICES
575.00,C A Wood T/A Orange Wood Design,Finance & Corporate Services,"Performance, Repn & Comms",Performance And Reputation,4710,Legal & Professional Services,09/04/2019,Supplies & Services,94922,FINANCE & CORPORATE SERVICES
575.00,Nottingham City Council,Communities,Planning & Growth,Development Control,1161,Training Expenses,07/06/2019,Employee Related Expenditure,96743,COMMUNITIES
575.00,Stanley Security Solutions,Capital Expenditure,Transformation & Innovation,New Depot,0312,Other Equipment/Materials,29/05/2019,Supplies & Services,96500,CAPITAL
570.00,Fred Brown Car Repairs Limited,Neighbourhoods,Environmental Health,Hackney Carriage/Private Hire,1031,Legal & Professional Services,16/04/2019,Supplies & Services,95035,NEIGHBOURHOODS
570.00,Fred Brown Car Repairs Limited,Neighbourhoods,Environmental Health,Hackney Carriage/Private Hire,1031,Legal & Professional Services,24/04/2019,Supplies & Services,95143,NEIGHBOURHOODS
565.25,Service Level Management Ltd,Transformation,Bsu,Central Mail,4871,Postages,29/04/2019,Supplies & Services,95044,TRANSFORMATION
560.50,Print Image Network Ltd,Finance & Corporate Services,Democratic Services,Borough Council Elections,1021,External Printing,14/06/2019,Supplies & Services,97191,FINANCE & CORPORATE SERVICES
560.00,Hickling Village Hall Management Commitee,Assets,Current Assets,European Election,7102,Hire Of Rooms,12/06/2019,Supplies & Services,97129,FINANCE & CORPORATE SERVICES
556.00,Central Fire Systems Ltd,Transformation,Property Services,The Point,1886,Service Maintenance Contracts,14/06/2019,Premises Related Expenditure,96931,TRANSFORMATION
554.24,Frontline Communications Group Limited,Transformation,Customer Services,Customer Services,4807,Other Services,13/05/2019,Supplies & Services,96060,TRANSFORMATION
551.53,Abacus Lighting Limited,Communities,Community Development,Gresham,8950,Responsive Works - Buildings,19/06/2019,Premises Related Expenditure,96747,COMMUNITIES
551.25,Trevor Roberts Associates Ltd,Communities,Planning & Growth,Development Control,1161,Training Expenses,11/04/2019,Employee Related Expenditure,95008,COMMUNITIES
550.00,Ep Consulting Building Services Engineers,Capital Expenditure,Transformation & Innovation,Cotgrave Phase 2,0387,Legal & Professional Services,04/06/2019,Supplies & Services,96880,CAPITAL
550.00,Mitie Pfi Ltd,Assets,Current Assets,European Election,7102,Hire Of Rooms,12/06/2019,Supplies & Services,97123,FINANCE & CORPORATE SERVICES
550.00,Mitie Pfi Ltd,Finance & Corporate Services,Democratic Services,Borough Council Elections,1021,Hire Of Rooms,22/05/2019,Supplies & Services,96467,FINANCE & CORPORATE SERVICES
550.00,Nottingham City Council,Transformation,Human Resources,Corporate Training,4893,Training Expenses,03/04/2019,Employee Related Expenditure,95056,TRANSFORMATION
550.00,Pete Forster,Communities,Community Development,Sports Development,1593,Projects & Activities,29/05/2019,Supplies & Services,96330,COMMUNITIES
550.00,Print Image Facilities Llp,Finance & Corporate Services,Democratic Services,Borough Council Elections,1021,Stationery,13/05/2019,Supplies & Services,96170,FINANCE & CORPORATE SERVICES
550.00,Software Box Ltd,Transformation,Ict,It Rechargeable Costs,4722,Maintenance Contracts - S&S,22/05/2019,Supplies & Services,96400,TRANSFORMATION
550.00,Software Box Ltd,Transformation,Ict,It Rechargeable Costs,4722,Maintenance Contracts - S&S,07/06/2019,Supplies & Services,96701,TRANSFORMATION
550.00,Westcotes House Ltd,Neighbourhoods,Strategic Housing,Homeless B&B,1110,Housing-Emergency Accommodn,29/05/2019,Supplies & Services,96637,NEIGHBOURHOODS
545.64,Bt Telephone Payment Centre,Transformation,Ict,Telephones,4870,Telephone Rental,24/04/2019,Supplies & Services,95110,TRANSFORMATION
542.40,Reach Publishing Services Limited,Communities,Planning & Growth,Development Control,1161,Advertising,03/04/2019,Supplies & Services,94961,COMMUNITIES
541.80,Streetwise Environmental Ltd,Communities,Community Development,Environmental Promotion,1590,Contractors-Supplies & Servs,29/04/2019,Supplies & Services,95463,COMMUNITIES
539.04,British Gas Business,Transformation,Property Services,The Point,1886,Electricity,29/05/2019,Premises Related Expenditure,96188,TRANSFORMATION
528.05,Eon,Transformation,Property Services,New Offices - Cotgrave,4798,Electricity,24/04/2019,Premises Related Expenditure,95273,TRANSFORMATION
525.00,Solace Group Ltd,Finance & Corporate Services,Emt & Transformation,Executive Management Team,4721,Conferences - Employees,11/04/2019,Supplies & Services,95130,FINANCE & CORPORATE SERVICES
525.00,Tanners,Neighbourhoods,Strategic Housing,Homelessness Prevention,1147,Projects & Activities,16/04/2019,Supplies & Services,95450,NEIGHBOURHOODS
520.75,Clearwater Technology Ltd,Transformation,Property Services,Arena Civic Centre,4718,Service Maintenance Contracts,21/05/2019,Premises Related Expenditure,96055,TRANSFORMATION
518.65,Lift & Engineering Services Ltd,Transformation,Property Services,The Point,1886,Responsive Works - Buildings,29/05/2019,Premises Related Expenditure,96709,TRANSFORMATION
518.00,Apse,Neighbourhoods,Waste & Fleet Management,Contracts & Projects Ha,4716,Training Expenses,07/06/2019,Employee Related Expenditure,96817,COMMUNITIES
510.00,Bridgford Energy Consultants Ltd,Transformation,Property Services,Hollygate Lane Ph2 (Manvers),1896,Responsive Works - Buildings,29/05/2019,Premises Related Expenditure,96737,TRANSFORMATION
504.40,City Hygiene Services Ltd,Neighbourhoods,Waste & Fleet Management,Eastcroft Depot,4002,Contractors-Third Party,22/05/2019,Third Party Payments,96124,NEIGHBOURHOODS
500.00,Maltby & Company,Transformation,Property Services,Open Spaces & Footpaths,1290,Service Maintenance Contracts,03/04/2019,Premises Related Expenditure,94980,TRANSFORMATION
475.00,Maltby & Company,Neighbourhoods,Leisure Contracts & Car Parks,Leisure Management Contract,1795,Service Maintenance Contracts,03/04/2019,Premises Related Expenditure,94980,FINANCE & CORPORATE SERVICES
427.16,Reach Publishing Services Limited,Communities,Planning & Growth,Development Control,1161,Advertising,11/04/2019,Supplies & Services,95255,COMMUNITIES
427.12,Reach Publishing Services Limited,Communities,Planning & Growth,Conservation,1171,Advertising,11/04/2019,Supplies & Services,95255,COMMUNITIES
350.00,Maltby & Company,Communities,Community Development,Bridgford Park,8927,Service Maintenance Contracts,03/04/2019,Premises Related Expenditure,94980,COMMUNITIES
350.00,Maltby & Company,Transformation,Property Services,Arena Civic Centre,4718,Service Maintenance Contracts,03/04/2019,Premises Related Expenditure,94980,TRANSFORMATION
347.50,Clearwater Technology Ltd,Communities,Community Development,Gresham,8950,Service Maintenance Contracts,21/05/2019,Premises Related Expenditure,96055,COMMUNITIES
300.57,Reach Publishing Services Limited,Communities,Planning & Growth,Conservation,1171,Advertising,05/04/2019,Supplies & Services,95098,COMMUNITIES
300.00,South Notts Fabrications Ltd,Communities,Community Development,Alford Road,8940,Responsive Works - Buildings,24/05/2019,Premises Related Expenditure,96196,COMMUNITIES
253.50,Royal Mail Group Ltd,Transformation,Bsu,Central Mail,4871,Postages,27/06/2019,Supplies & Services,96310,TRANSFORMATION
225.00,Clearwater Technology Ltd,Neighbourhoods,Waste & Fleet Management,Abbey Road Depot,4001,Service Maintenance Contracts,21/05/2019,Premises Related Expenditure,96055,NEIGHBOURHOODS
216.96,Reach Publishing Services Limited,Communities,Planning & Growth,Conservation,1171,Advertising,03/04/2019,Supplies & Services,94961,COMMUNITIES
213.75,Clearwater Technology Ltd,Communities,Community Development,Alford Road,8940,Service Maintenance Contracts,21/05/2019,Premises Related Expenditure,96055,COMMUNITIES
213.75,Clearwater Technology Ltd,Neighbourhoods,Strategic Housing,Hostel Hound Lodge,1111,Service Maintenance Contracts,21/05/2019,Premises Related Expenditure,96055,NEIGHBOURHOODS
210.00,South Notts Fabrications Ltd,Transformation,Property Services,Land Holdings,1884,Responsive Works - Buildings,24/05/2019,Premises Related Expenditure,96196,TRANSFORMATION
191.25,Clearwater Technology Ltd,Communities,Community Development,West Park,8994,Service Maintenance Contracts,21/05/2019,Premises Related Expenditure,96055,COMMUNITIES
181.22,Reach Publishing Services Limited,Communities,Planning & Growth,Conservation,1171,Advertising,27/06/2019,Supplies & Services,97641,COMMUNITIES
175.00,Maltby & Company,Communities,Community Development,West Park,8994,Service Maintenance Contracts,03/04/2019,Premises Related Expenditure,94980,COMMUNITIES
150.00,Maltby & Company,Communities,Community Development,Gresham,8950,Service Maintenance Contracts,03/04/2019,Premises Related Expenditure,94980,COMMUNITIES
146.75,Clearwater Technology Ltd,Communities,Community Development,Lutterell Hall,8990,Service Maintenance Contracts,21/05/2019,Premises Related Expenditure,96055,COMMUNITIES
143.75,Nottingham City Council,Neighbourhoods,Environmental Health,Food Hygiene,1054,Training Expenses,13/05/2019,Employee Related Expenditure,96065,NEIGHBOURHOODS
143.75,Nottingham City Council,Neighbourhoods,Environmental Health,Health And Safety,1059,Training Expenses,13/05/2019,Employee Related Expenditure,96065,NEIGHBOURHOODS
143.75,Nottingham City Council,Neighbourhoods,Environmental Health,Licences - General,1029,Training Expenses,13/05/2019,Employee Related Expenditure,96065,NEIGHBOURHOODS
143.75,Nottingham City Council,Neighbourhoods,Environmental Health,Pollution Control,1050,Training Expenses,13/05/2019,Employee Related Expenditure,96065,NEIGHBOURHOODS
135.00,Clearwater Technology Ltd,Communities,Community Development,Rushcliffe Country Park,1375,Service Maintenance Contracts,21/05/2019,Premises Related Expenditure,96055,COMMUNITIES
125.00,Maltby & Company,Communities,Community Development,Gamston Community Hall,8992,Service Maintenance Contracts,03/04/2019,Premises Related Expenditure,94980,COMMUNITIES
124.58,Reach Publishing Services Limited,Communities,Planning & Growth,Conservation,1171,Advertising,24/06/2019,Supplies & Services,97209,COMMUNITIES
123.75,Clearwater Technology Ltd,Communities,Community Development,Sir Julien Cahn Pavilion,8993,Service Maintenance Contracts,21/05/2019,Premises Related Expenditure,96055,COMMUNITIES
112.50,Clearwater Technology Ltd,Communities,Community Development,Gamston Community Hall,8992,Service Maintenance Contracts,21/05/2019,Premises Related Expenditure,96055,COMMUNITIES
100.00,Maltby & Company,Communities,Community Development,Alford Road,8940,Service Maintenance Contracts,03/04/2019,Premises Related Expenditure,94980,COMMUNITIES
100.00,Maltby & Company,Communities,Community Development,Rushcliffe Country Park,1375,Service Maintenance Contracts,03/04/2019,Premises Related Expenditure,94980,COMMUNITIES
100.00,Maltby & Company,Neighbourhoods,Waste & Fleet Management,Abbey Road Depot,4001,Service Maintenance Contracts,03/04/2019,Premises Related Expenditure,94980,NEIGHBOURHOODS
100.00,Maltby & Company,Transformation,Property Services,Bingham Market Stalls,1880,Service Maintenance Contracts,03/04/2019,Premises Related Expenditure,94980,TRANSFORMATION
99.23,Reach Publishing Services Limited,Communities,Planning & Growth,Conservation,1171,Advertising,27/06/2019,Supplies & Services,97457,COMMUNITIES
84.75,Reach Publishing Services Limited,Communities,Planning & Growth,Conservation,1171,Advertising,07/06/2019,Supplies & Services,96803,COMMUNITIES
70.00,South Notts Fabrications Ltd,Communities,Community Development,Gresham,8950,Responsive Works - Buildings,24/05/2019,Premises Related Expenditure,96196,COMMUNITIES
50.00,Maltby & Company,Communities,Community Development,Lutterell Hall,8990,Service Maintenance Contracts,03/04/2019,Premises Related Expenditure,94980,COMMUNITIES
41.46,Edenred,Transformation,Human Resources,Human Resources,4709,Flexible Benefits,11/04/2019,Employee Related Expenditure,95234,TRANSFORMATION
37.20,Edenred,Transformation,Human Resources,Human Resources,4709,Flexible Benefits,15/05/2019,Employee Related Expenditure,96213,TRANSFORMATION
37.20,Edenred,Transformation,Human Resources,Human Resources,4709,Flexible Benefits,14/06/2019,Employee Related Expenditure,97147,TRANSFORMATION
-240.00,Carole Crookes,Liabilities,Current Liabilities,Creditors Control Account,5101,Sub Contractors Sums Deducted,03/05/2019,Sub Contractors Sums Deducted,95169,FINANCE & CORPORATE SERVICES
"-10,134.00",Cotgrave Town Council,Neighbourhoods,Leisure Contracts & Car Parks,Leisure Management Contract,1795,O.L.A Contribution,24/04/2019,Income,95384,FINANCE & CORPORATE SERVICES
"22,127,241.36",,,,,,,,,,
